Cogmind - Beta 15 @@@ ROGUE MODE // 2025.06.20 @ 12:05:11 Player: Perseus Result: Escaped! Performance ------------- Evolutions (9) 4500 Regions Visited (34) 6800 Robots Destroyed (1480) 7400 Value Destroyed (67632) 67632 Prototype IDs (403) 8060 Alien Tech Used (11) 2200 Bonus (93666) 93666 TOTAL SCORE: 190258 Bonus ------- Triggered High Security 2500 High Alert Combat Kills 24973 Follower Combat Kills 1745 Awakened Behemoth Slayer 1000 Registered with UFD 300 Met Imprinter 300 Destroyed Z-Imprinter 1000 Triggered Deep Caves Wall 500 Met Zhirov 300 Met Warlord at Base 500 MAIN.C Attacked Warlord 500 Warlord Defense Kills 16548 Acquired SGEMP 2000 Delivered SGEMP 2000 Recovered Sigix Corpse 4000 Destroyed MAIN.C Guards 500 Met MAIN.C 5000 Destroyed MAIN.C Shell 5000 Zhirov Destroyed MAIN.C 3000 Met Architect 300 Destroyed A8 300 Destroyed A6 400 Destroyed A5 500 Destroyed A4 700 Destroyed A3 800 Destroyed A2 1000 Destroyed Architect 15000 Win 3000 Cogmind --------- Core Integrity 791/1600 Matter 300/300 Energy 94/100 System Corruption 1% Temperature Cool (12) Movement Flying (23) Location To Epsilon Eridani Parts ------- > --- POWER (2) -------- Improved Fusion Compressor Improved Fusion Compressor > --- PROPULSION (8) --- Electron Diverter Cooled Impulse Thruster Impulse Thruster Array Impulse Thruster Array Improved Q-thruster Cooled Q-thruster > --- UTILITY (13) ----- Desublimator Experimental Cooling System Concept Antigrav Storage Unit Advanced Quantum Shading Machine Spectral Analyzer Concept Weapon Articulator Experimental Core Analyzer Improved Armor Integrity Analyzer Femtoactuators Advanced Force Booster Improved Propulsion Shielding Experimental Powered Armor Experimental Thermal Shield > --- WEAPON (2) ------- Nanosword CR-A16's Behemoth Slayer > --- INVENTORY (25) --- Improved Quantum Reactor Electron Diverter Cooled Q-thruster Experimental Cooling System Experimental Coolant Injector Medium Storage Unit Concept Chromion Battery (800) Concept NT7 Matterbank (750) Quantum Shading Machine Experimental Signal Interpreter Experimental Terrain Scanner Quantum Capacitor Experimental Transmission Jammer SHELL Armor High-powered Transdimensional Reconstructor Null Cannon Point Singularity Launcher Guided Micro-nuke Launcher Plasma Lance Sigix Corpse Sigix Corpse Peak State ------------ > --- POWER ------------ Backup Power VII Micro Antimatter Reactor > --- PROPULSION ------- Cooled Field Propulsion Drive Electron Diverter Impulse Thruster Array Impulse Thruster Array Improved Q-thruster Cooled Q-thruster > --- UTILITY ---------- Concept Antigrav Storage Unit Advanced Quantum Shading Machine Experimental Sensor Array Experimental Signal Interpreter Experimental Terrain Scan Processor Concept Weapon Articulator Experimental Core Analyzer Femtoactuators Experimental Reaction Control System SHELL Armor Experimental Hacking Suite > --- WEAPON ----------- Null Cannon Nanosword > --- INVENTORY -------- Zionite Light DM Reactor Matter Drive Cooled Q-thruster Cooled Q-thruster Experimental Cooling System Concept Chromion Battery Concept NT7 Matterbank Experimental Terrain Scanner Advanced Force Booster Advanced Transmission Jammer Advanced Phase Shifter Cloak of Protection Improved Propulsion Shielding Experimental Utility Shielding Centrium Medium Armor Plating Improved System Shield High-powered Transdimensional Reconstructor Subatomic Replicator Sigix Terminator Plasma Lance CR-A16's Behemoth Slayer [Rating: 252] Favorites ----------- Power Backup Power VII Engine Subdweller Power Source Power Core Backup Power VII Reactor Micro Antimatter Reactor Propulsion Nuclear Pulse Thruster Treads Light Treads Leg Aluminum Leg Wheel Compact Wheel Hover Unit Zionite Glidesys I Flight Unit Nuclear Pulse Thruster Utility Experimental Sensor Array Device Experimental Sensor Array Storage Large Storage Unit Processor Experimental Signal Interpreter Hackware Experimental Hacking Suite Protection Experimental Utility Shielding Artifact Phase Armor Weapon Spear Energy Gun Subdweller Laser Energy Cannon Subdweller Beam Cannon Ballistic Gun Autogun Ballistic Cannon Antimatter Cannon Launcher Smartbomb Launcher Special Weapon Junk Cannon Impact Weapon Makeshift Hammer Slashing Weapon Nanosword Piercing Weapon Spear Special Melee Weapon Advanced Datajack Build | -11 -10 -10 -8 -8 -6 -6 -6 -6 -6 -6 -6 -5 -5 -5 -5 -5 -5 -5 -4 -4 -4 -4 -4 -4 -4 -3 -3 -3 -3 -2 -2 -1 -1 -1 ------- Run | Yrd Mat Sub Rec Scr Fac Was Fac Low Low Zio Dee Pro Fac Was Fac Upp Upp Zhi Pro Fac Was Fac Upp Upp War Pro Res Qua Frg Res Tes Acc Com Ac0 Slots Evolved 18 | . . . . . 8 . . . . . . . 2 . . . . . . 2 . . . . . . 2 . . 2 . 2 . . Power 1 | . . . . . . . . . . . . . . . . . . . . . . . . . . . . . . 1 . . . . Propulsion 6 | . . . . . 3 . . . . . . . 1 . . . . . . . . . . . . . 1 . . . . 1 . . Utility 11 | . . . . . 5 . . . . . . . 1 . . . . . . 2 . . . . . . 1 . . 1 . 1 . . Weapon . | . . . . . . . . . . . . . . . . . . . . . . . . . . . . . . . . . . . Parts Attached 351 | 8 14 14 1 7 44 . 8 2 3 6 13 12 14 . 8 1 . 3 2 21 . 10 . . 10 2 14 8 6 25 7 13 42 33 Power 30 | 1 1 2 . 1 5 . . . . 1 1 1 1 . . . . 1 . 1 . 1 . . . . 1 . . 2 . 1 5 4 Engine 8 | 1 1 2 . 1 3 . . . . . . . . . . . . . . . . . . . . . . . . . . . . . Core 11 | . . . . . 2 . . . . 1 . . 1 . . . . . . 1 . 1 . . . . . . . 1 . 1 1 2 Reactor 11 | . . . . . . . . . . . 1 1 . . . . . 1 . . . . . . . . 1 . . 1 . . 4 2 Propulsion 62 | 2 3 . 1 1 11 . 3 . . 1 2 3 4 . 2 . . 1 . 4 . 1 . . 1 . 2 3 . 6 1 3 . 7 Treads 3 | . 3 . . . . . . . . . . . . . . . . . . . . . . . . . . . . . . . . . Leg 11 | 2 . . . 1 4 . . . . . 1 1 . . . . . 1 . . . . . . . . . . . . . . . 1 Wheel 4 | . . . 1 . 1 . 1 . . . . 1 . . . . . . . . . . . . . . . . . . . . . . Hover 1 | . . . . . . . . . . . 1 . . . . . . . . . . . . . . . . . . . . . . . Flight 43 | . . . . . 6 . 2 . . 1 . 1 4 . 2 . . . . 4 . 1 . . 1 . 2 3 . 6 1 3 . 6 Utility 189 | 3 2 4 . 3 21 . 5 2 2 2 7 5 6 . 6 . . 1 2 14 . 8 . . 4 1 10 2 6 12 3 8 30 20 Device 71 | 2 . 1 . . 10 . 3 . 1 1 1 4 1 . 3 . . . . 6 . 3 . . 3 1 4 . 4 4 1 3 7 8 Storage 22 | 1 1 1 . 2 2 . 2 1 . . 1 1 . . . . . . . 1 . 2 . . . . 1 . 1 1 . . 2 2 Processor 34 | . . . . . 4 . . . 1 1 . . 1 . 1 . . . . 1 . . . . 1 . 2 . 1 4 . . 12 5 Hackware 28 | . . . . . 2 . . . . . 1 . 3 . 2 . . . 2 4 . 2 . . . . 2 . . 3 1 4 2 . Protection 32 | . 1 2 . 1 3 . . 1 . . 4 . 1 . . . . 1 . 2 . 1 . . . . 1 . . . 1 1 7 5 Artifact 2 | . . . . . . . . . . . . . . . . . . . . . . . . . . . . 2 . . . . . . Weapon 70 | 2 8 8 . 2 7 . . . 1 2 3 3 3 . . 1 . . . 2 . . . . 5 1 1 3 . 5 3 1 7 2 Energy Gun 18 | 2 3 3 . . 1 . . . . . 2 1 . . . 1 . . . . . . . . 1 . . . . . 1 . 2 1 Energy Cannon 9 | . . 2 . . . . . . . . . . 1 . . . . . . . . . . . 2 1 . 1 . 1 1 . . . Ballistic Gun 5 | . 2 1 . 1 . . . . . . . . . . . . . . . . . . . . 1 . . . . . . . . . Ballistic Cannon 6 | . . 1 . . 2 . . . . 1 . 1 . . . . . . . . . . . . . . . . . . . . . 1 Launcher 8 | . . . . . 1 . . . . . . 1 1 . . . . . . . . . . . . . . . . 2 . . 3 . Special Weapon 5 | . 2 . . 1 1 . . . . . . . . . . . . . . . . . . . . . . 1 . . . . . . Impact Weapon 3 | . 1 1 . . . . . . 1 . . . . . . . . . . . . . . . . . . . . . . . . . Slashing Weapon 2 | . . . . . . . . . . . . . . . . . . . . . . . . . . . . . . 1 1 . . . Piercing Weapon 7 | . . . . . 2 . . . . . 1 . . . . . . . . . . . . . 1 . 1 . . 1 . . 1 . Special Melee Weapon 7 | . . . . . . . . . . 1 . . 1 . . . . . . 2 . . . . . . . 1 . . . 1 1 . Unidentified Prototypes 51 | . . . . 1 4 . . 1 . 1 9 8 . . 1 . . 4 . 2 . . . . 8 . . 4 . 2 3 . . 3 Parts Lost 25 | . . 5 . . 2 . . . . . 1 . . . . . . . . 3 . . . . . . 2 1 . . . 1 . 10 Power 5 | . . 2 . . . . . . . . . . . . . . . . . 1 . . . . . . . . . . . . . 2 Propulsion 10 | . . 3 . . 1 . . . . . 1 . . . . . . . . 1 . . . . . . 1 . . . . . . 3 Utility 9 | . . . . . 1 . . . . . . . . . . . . . . 1 . . . . . . . 1 . . . 1 . 5 Weapon 1 | . . . . . . . . . . . . . . . . . . . . . . . . . . . 1 . . . . . . . Highest Loss Streak 3 | . . 2 . . 1 . . . . . 1 . . . . . . . . 1 . . . . . . 1 1 . . . 1 . 3 To Critical Strikes . | . . . . . . . . . . . . . . . . . . . . . . . . . . . . . . . . . . . Average Backups 13 | 6 10 7 15 14 12 13 12 13 16 20 12 13 12 13 12 12 13 12 12 11 12 12 12 12 13 13 14 17 19 20 21 20 17 10 Power 1 | . 1 . . 1 1 1 1 1 1 1 1 2 1 1 1 . 1 1 1 . 1 1 1 1 1 1 1 2 2 1 1 1 1 1 Propulsion 1 | 3 2 . . . . 1 1 1 1 1 1 1 1 2 1 1 1 1 1 . 2 1 1 1 1 1 1 . 1 1 1 1 2 2 Utility 6 | . 2 2 7 6 6 7 6 8 10 11 6 7 7 7 7 8 8 8 7 6 6 6 7 7 7 6 7 8 7 9 10 11 7 5 Weapon 3 | 1 5 5 7 6 4 4 3 3 3 5 2 2 2 2 1 1 1 2 1 1 2 1 1 1 2 2 3 3 3 4 5 4 3 1 Tool/Special . | . . . . . . . . . . . . . . . . . . . . . . . . . . . . . . . . . . . Unused Backups 160 | . 4 1 3 3 9 . 6 . . 3 7 . 1 . 1 4 . 2 . 3 . 8 1 . 2 . 2 5 . 5 2 2 76 10 Power 21 | . . . . . . . . . . . 2 . . . . . . . . 1 . . . . . . . . . . . . 18 . Propulsion 19 | . 2 . . . 1 . . . . . . . . . . 1 . . . . . 3 . . . . . . . . 1 . 10 1 Utility 79 | . . . 1 2 3 . 6 . . 1 3 . 1 . 1 2 . 2 . 2 . 1 1 . 1 . 1 1 . 3 1 2 37 7 Weapon 33 | . 2 1 2 1 4 . . . . 2 . . . . . . . . . . . 3 . . 1 . 1 2 . 2 . . 10 2 Tool/Special 8 | . . . . . 1 . . . . . 2 . . . . 1 . . . . . 1 . . . . . 2 . . . . 1 . Average Slot Usage (%) 90 | . 99 86 96 97 92 93 96 95 94 93 97 93 91 88 87 88 86 86 88 92 89 90 92 91 85 88 86 89 86 90 89 90 83 80 Engine 3 | . 13 13 14 14 3 . . . . . . . . . . . . . . . . . . . . . . . . . . . . . Core 3 | . . . . . 2 6 6 6 6 6 5 1 4 5 3 . . . . 4 . 3 5 5 1 4 1 4 4 5 4 4 4 3 Reactor 1 | . . . . . . . . . . . . 4 . . 1 4 5 4 4 . 5 1 . . 4 . 2 . . 2 4 3 3 1 Treads 1 | . 23 10 . . . . . . . . . . . . . . . . . . . . . . . . . . . . . . . . Leg 3 | . 4 12 14 17 11 . . . . . . . . . . . . . . . . . . . . . . . . . . . . . Flight 21 | . . . . . 16 33 33 33 33 33 33 32 29 29 28 29 29 28 29 25 26 26 26 26 25 26 22 22 23 21 21 22 24 24 Device 12 | . 11 5 14 9 11 13 14 13 10 8 17 17 6 9 11 17 20 16 19 10 15 15 21 20 16 16 14 10 16 13 11 13 13 18 Storage 6 | . 14 6 14 14 6 6 6 9 10 11 6 6 5 5 5 8 5 5 5 5 5 5 5 5 5 5 4 4 4 4 4 4 4 4 Processor 6 | . . . . . 11 6 6 6 6 7 12 6 7 6 5 5 5 5 5 5 5 5 5 5 5 5 7 9 10 9 8 8 18 10 Hackware 9 | . . . . . 7 13 13 13 13 11 6 13 22 17 14 5 5 5 6 24 15 18 15 15 15 15 20 19 14 16 20 19 2 . Protection 4 | . 2 8 . 4 5 6 5 . . . . 1 2 5 4 5 5 5 5 4 5 4 5 5 5 5 3 6 4 7 5 7 7 9 Energy Gun 1 | . 3 . 11 13 1 . . . . . . . . . . . . . . . . . . . . . . . . . . . . . Energy Cannon 2 | . . 13 14 9 1 . . . . . . . 1 . . . . . . . . . . . . . . . . . . . . . Launcher 1 | . . . . . 1 6 2 1 . . . 4 1 5 2 2 3 . 2 . . 1 1 2 3 2 . . . . 1 . 1 . Impact Weapon 1 | . . 12 2 . 1 . . . . . . . . . . . . . . . . . . . . . . . . . . . . . Piercing Weapon 3 | . . . . . 3 . 6 8 11 7 5 1 4 . 2 2 1 5 2 4 5 3 3 2 . 2 4 3 2 3 2 3 2 3 Special Melee Weapon 1 | . . . . . . . . . . 3 . . . . 1 2 1 5 2 4 5 3 3 2 1 2 . 3 1 3 2 . . . Peak Build Rating 252 | 9 11 15 15 25 80 80 81 81 83 84 88 97 105 105 110 111 113 113 114 131 130 138 136 139 143 145 169 179 195 211 214 233 252 246 Average Rating 108 | 7 9 13 14 16 70 80 78 76 76 77 80 87 97 103 105 109 111 104 111 123 130 131 133 134 138 136 154 166 176 202 205 220 212 215 On Entrance 108 | . 8 11 15 15 25 80 80 80 75 78 84 80 87 105 103 108 111 110 113 106 130 130 134 133 139 138 142 159 171 191 203 204 224 234 Naked Turns . | . . . . . . . . . . . . . . . . . . . . . . . . . . . . . . . . . . . Heaviest Build 237 | 15 32 57 58 58 53 39 39 232 232 237 237 48 44 36 53 61 53 48 53 53 48 61 44 44 53 43 63 60 60 61 61 64 90 94 Greatest Support 94 | 20 40 40 16 23 93 39 39 39 39 39 39 46 51 41 57 54 54 54 54 55 55 55 55 55 56 56 67 73 68 69 72 72 91 94 Greatest Overweight (x) 7 | . 1 5 5 3 1 . 1 7 7 7 7 1 1 . 1 1 1 . 1 1 . 1 . . . . . 1 1 1 1 . 1 . Average Overweight (x) . | . . 1 3 2 . . . . 1 1 . . . . . . . . . . . . . . . . . . . . . . . . Largest Inventory Capacity 35 | 8 15 20 20 20 15 15 15 35 35 35 35 15 15 15 15 15 15 15 15 15 15 15 15 15 15 15 20 20 25 25 25 25 25 25 Average Capacity 18 | 7 12 11 20 17 15 15 15 24 28 31 16 15 15 15 15 15 15 15 15 15 15 15 15 15 15 15 16 20 22 25 25 25 25 12 Most Carried 35 | 8 15 18 20 20 15 15 15 28 35 35 35 15 15 15 15 15 15 15 15 15 15 15 15 15 15 15 20 20 25 25 25 25 25 25 Average Carried 16 | 6 10 8 19 17 14 15 14 19 25 30 14 14 14 14 13 14 14 14 14 14 15 14 14 14 14 14 15 19 21 24 24 24 20 11 Final Capacity 35 | 8 15 20 20 15 15 15 15 35 35 35 15 15 15 15 15 15 15 15 15 15 15 15 15 15 15 15 20 20 25 25 25 25 25 25 Final Carried 35 | 8 15 18 20 15 15 15 15 28 35 35 15 15 15 14 15 15 15 15 15 15 15 15 15 15 15 15 20 20 25 25 25 25 25 25 Class Distribution -------------------- 18% | Mutant 12% | Hacker-Scout 11% | Hacker-Sprinter 8% | Scavenger-Sprinter 8% | Wizard-Sprinter 8% | Hauler-Mutant 4% | Hacker-Ninja 4% | Scavenger-Mutant 4% | Wizard-Scout 4% | Scout 3% | Sprinter Dominant Class ---------------- Mutant | -10/Materials Mutant | -10/Subcaves Scavenger-Mutant | -8/Recycling Scavenger-Mutant | -8/Scraptown Hacker-Sprinter | -6/Factory Hacker-Sprinter | -6/Waste Hacker-Sprinter | -6/Factory Hacker-Scout | -6/Lower Caves Hauler-Mutant | -6/Lower Caves Hauler-Mutant | -6/Zion Scout | -6/Deep Caves Hacker-Scout | -5/Proximity Caves Hacker-Sprinter | -5/Factory Hacker-Scout | -5/Waste Sprinter | -5/Factory Scout | -5/Upper Caves Sprinter | -5/Upper Caves Sprinter | -5/Zhirov Sprinter | -4/Proximity Caves Wizard-Scout | -4/Factory Hacker-Sprinter | -4/Waste Hacker-Sprinter | -4/Factory Hacker-Ninja | -4/Upper Caves Hacker-Scout | -4/Upper Caves Hacker-Sprinter | -4/Warlord Hacker-Scout | -3/Proximity Caves Wizard-Ninja | -3/Research Wizard-Sprinter | -3/Quarantine Hacker-Scout | -3/Protoforge Wizard-Scout | -2/Research Wizard-Sprinter | -2/Testing Wizard-Sprinter | -1/Access Scavenger-Sprinter | -1/Command Scavenger-Sprinter | -1/Access_0 Resources | -11 -10 -10 -8 -8 -6 -6 -6 -6 -6 -6 -6 -5 -5 -5 -5 -5 -5 -5 -4 -4 -4 -4 -4 -4 -4 -3 -3 -3 -3 -2 -2 -1 -1 -1 ----------- Run | Yrd Mat Sub Rec Scr Fac Was Fac Low Low Zio Dee Pro Fac Was Fac Upp Upp Zhi Pro Fac Was Fac Upp Upp War Pro Res Qua Frg Res Tes Acc Com Ac0 Matter Collected 52854 | 270 592 535 20 100 2968 214 2951 875 987 172 1164 1258 2310 176 4447 704 554 375 934 1448 . 6977 930 1453 2330 1285 1500 918 955 2078 1142 766 6796 2670 Remotely 107 | . . . . . . . . . . . . . . . . . . . . . . . . . . . . . . 107 . . . . Salvage Created 73127 | 214 573 577 295 . 4484 661 4613 684 1214 . 500 754 2744 1444 4709 377 330 375 579 1754 . 8100 670 465 2308 928 2117 653 837 2452 1166 1639 21925 2986 Parts 2854 | 18 31 35 8 . 191 3 171 19 26 . 25 8 134 11 194 13 22 2 18 93 . 263 11 14 79 18 83 59 41 106 49 71 899 139 Haulers Intercepted 26 | . 2 . . . 4 . 5 . . . . . 3 . 1 . . . . 2 . 2 . . . . . . . 3 . 4 . . Recyclers Shooed 30 | 1 1 . . . 7 . 3 . . . . . 5 . 1 . . . . 2 . 5 . . . . . . . 2 1 . 2 . Parts Field Recycled 82 | . . . . . . . . . . . . . . . . . . . . . . . . . . . . . . . . . 82 . Retrieved Matter 279 | . . . . . . . . . . . . . . . . . . . . . . . . . . . . . . . . . 279 . Parts Self-Destructed 109 | . . 23 . . . . . 17 11 . . 4 . . . 4 9 2 8 . . . 2 13 . 16 . . . . . . . . Prevented 5 | . . . . . . . . . . . . . . . . . . . . . . . . 5 . . . . . . . . . . Kills | -11 -10 -10 -8 -8 -6 -6 -6 -6 -6 -6 -6 -5 -5 -5 -5 -5 -5 -5 -4 -4 -4 -4 -4 -4 -4 -3 -3 -3 -3 -2 -2 -1 -1 -1 ------- Run | Yrd Mat Sub Rec Scr Fac Was Fac Low Low Zio Dee Pro Fac Was Fac Upp Upp Zhi Pro Fac Was Fac Upp Upp War Pro Res Qua Frg Res Tes Acc Com Ac0 Combat Hostiles Destroyed 1085 | . 6 17 1 . 45 3 113 23 18 . 28 7 53 6 163 17 17 . 22 23 . 163 11 24 132 24 22 11 20 22 8 15 23 48 Melee 55 | . . . . . . . . . . . . . 1 . 2 . . . . . . . . 1 . . . . 4 . . 6 9 32 Guns 17 | . 6 7 . . 3 . . . . . . 1 . . . . . . . . . . . . . . . . . . . . . . Cannons 36 | . . 9 1 . 3 . . 2 1 . 4 . . . . . . . . . . 1 2 . . . . . 4 . . . . 9 AOE 958 | . . . . . 38 3 113 21 17 . 22 6 52 6 161 17 17 . 21 23 . 162 8 22 132 23 20 11 12 19 8 8 13 3 Classes Destroyed 33 | 3 6 2 1 . 5 1 5 1 1 . 2 1 . . . . 1 . . . . 1 . . 2 . . . 1 . . . . . Worker 127 | 2 2 . . . 22 . 13 . . . . . 12 . 4 . . . . 12 . 23 . . . . 7 9 9 5 3 1 3 . Builder 68 | . 1 . . . 21 . 1 . . . . . 4 . 1 . . . . 2 . 15 . . . . 6 6 4 1 4 2 . . Tunneler 13 | 7 . . . . 1 . 1 . . . . . . . 1 . . . . 2 . 1 . . . . . . . . . . . . Hauler 26 | . 2 . . . 4 . 5 . . . . . 3 . 1 . . . . 2 . 2 . . . . . . . 3 . 4 . . Recycler 106 | 1 3 . 3 . 20 . 10 . . . . . 7 . 10 . . . . 5 . 24 . . . . 7 1 . 7 4 1 3 . Carrier 1 | . . . . . . . 1 . . . . . . . . . . . . . . . . . . . . . . . . . . . Minesweeper 4 | . . . . . . . . 1 . . . . . . . 1 . . . . . . 1 1 . . . . . . . . . . Mechanic 19 | . . . . . 3 . 2 . . . . . . . 5 . . . . 1 . 5 . . 1 . . . 1 . 1 . . . Operator 17 | . 1 . . . 1 . 1 . . . . . 2 . 1 . . . . 2 . . . . . . 1 1 1 2 1 1 2 . Drone 4 | . . . . . . . . . . . . . . . . . . . . . . . . . . . . . 3 . . . 1 . Turret 2 | . . 2 . . . . . . . . . . . . . . . . . . . . . . . . . . . . . . . . Watcher 80 | . 3 . . . 7 . 3 . . . . . 10 . 4 . . . . 8 . 6 . . . . 9 3 4 11 3 5 4 . Swarmer 202 | . 5 5 . . 4 . 3 10 9 . . . 21 . 20 3 11 . 9 8 . 12 . 7 12 7 8 9 . 18 . 8 13 . Saboteur 41 | . . . . . . . 6 . . . . . 1 . 11 . . . . . . 10 . 1 12 . . . . . . . . . Grunt 403 | . 1 2 . . 23 . 67 7 6 . . 2 17 . 70 8 4 . 7 7 . 83 3 6 57 9 10 2 3 1 4 4 . . Brawler 42 | . . . . . . . 6 2 . . . . 3 . 6 . . . 1 1 . 10 . 3 9 1 . . . . . . . . Duelist 37 | . . . . . 1 . 6 1 . . . 1 2 . 8 2 . . . . . 9 . 1 3 3 . . . . . . . . Protector 36 | . . . . . 1 . 7 . . . . . 1 . 11 . . . . . . 5 . . 10 1 . . . . . . . . Sentry 42 | . . . 1 . 4 . . 2 2 . . . . . 2 2 2 . 2 . . 11 1 2 . 2 . . 8 . . 1 . . Demolisher 1 | . . . . . . . 1 . . . . . . . . . . . . . . . . . . . . . . . . . . . Specialist 6 | . . . . . . . 3 . . . . . . . . . . . . . . . . . 3 . . . . . . . . . Hunter 69 | . . . . . 7 . 6 1 . . . 2 2 . 21 . . . 2 1 . 12 2 2 7 . . . . . 2 . 2 . Programmer 69 | . . . . . 5 . 8 . . . . 1 5 . 14 2 . . 1 6 . 10 . 1 10 . 2 . . . . 1 3 . Heavy 1 | . . . . . . . . . . . . . . . . . . . . . . 1 . . . . . . . . . . . . Behemoth 12 | . . . . . . . . . . . . 1 1 . . . . . . . . . . 1 1 1 2 . . 3 . 1 1 . Compactor 9 | . . . . . . 3 . . . . . . . 6 . . . . . . . . . . . . . . . . . . . . Enhanced Grunt 31 | . . . . . . . . . . . . . . . . . . . . . . . . . . . . . . . . . . 31 Enhanced Sentry 2 | . . . . . . . . . . . . . . . . . . . . . . . . . . . . . . . . . . 2 Enhanced Hunter 8 | . . . . . . . . . . . . . . . . . . . . . . . . . . . . . . . . . . 8 Hotshot 6 | . . . . . . . . . . . . . . . . . . . . . . . . . . . . . 6 . . . . . Combat Programmer 2 | . . . . . . . . . . . . . . . . . . . . . . . . . . . . . . . . . 2 . Striker 5 | . . . . . . . . . . . . . . . . . . . . . . . . . 3 . . . . . 2 . . . Executioner 5 | . . . . . . . . . . . . . . . . . . . . . . . . . 5 . . . . . . . . . Subdweller 10 | . . 10 . . . . . . . . . . . . . . . . . . . . . . . . . . . . . . . . Z-Technician 5 | . . . . . . . . . . . 5 . . . . . . . . . . . . . . . . . . . . . . . Z-Light 11 | . . . . . . . . . . . 11 . . . . . . . . . . . . . . . . . . . . . . . Decomposer 7 | . . . . . . . . . . . . . . . . . 1 . 3 . . . 3 . . . . . . . . . . . Packrat 3 | . . . . . . . . . 1 . . 2 . . . . . . . . . . . . . . . . . . . . . . Samaritan 3 | . . . . . . . . . . . . . . . . . 2 . . . . . 1 . . . . . . . . . . . Assembled 17 | . . . . . . . . . . . 17 . . . . . . . . . . . . . . . . . . . . . . . Thug 1 | . . . . . . . . . . . . . . . . . . . . . . . 1 . . . . . . . . . . . Savage 3 | . . . . . . . . . . . . . . . . . . . . . . . 3 . . . . . . . . . . . Mutant 2 | . . . . . . . . . 1 . . . . . . . . . . . . . 1 . . . . . . . . . . . Best Kill Streak 34 | 6 6 3 2 . 27 3 21 4 13 . 10 3 9 4 27 6 5 . 6 8 . 34 3 5 19 7 9 6 8 6 3 5 16 4 Combat Bots Only 34 | . 4 3 1 . 9 3 21 4 13 . 10 3 7 4 26 6 5 . 6 4 . 34 3 5 19 7 5 5 5 5 3 4 8 4 Max Kills in Single Turn 7 | 1 1 2 1 . 4 1 7 3 3 . 3 2 5 2 7 2 3 . 4 4 . 5 2 3 6 3 5 5 1 5 3 2 3 3 Gunslinging 1 | . . 1 . . . . . . . . . . . . . . . . . . . . . . . . . . . . . . . . Exploded 7 | . . . . . 3 1 6 3 3 . 3 2 5 2 7 2 3 . 4 3 . 4 2 3 6 3 3 4 1 4 3 2 3 3 Melee 1 | . . . . . . . . . . . . . 1 . 1 . . . . . . . . 1 . . . . 1 . . 1 1 1 Uniques/NPCs Destroyed 9 | . . . . . . . . . . . 1 . . . . . . . . . . . . . . . . . . . . . 1 7 Z-Imprinter (-6/Deep Caves) MAIN.C Shell (-1/Command) A3 (-1/Access_0) A6 (-1/Access_0) A2 (-1/Access_0) A8 (-1/Access_0) A5 (-1/Access_0) A4 (-1/Access_0) Architect (-1/Access_0) Combat | -11 -10 -10 -8 -8 -6 -6 -6 -6 -6 -6 -6 -5 -5 -5 -5 -5 -5 -5 -4 -4 -4 -4 -4 -4 -4 -3 -3 -3 -3 -2 -2 -1 -1 -1 -------- Run | Yrd Mat Sub Rec Scr Fac Was Fac Low Low Zio Dee Pro Fac Was Fac Upp Upp Zhi Pro Fac Was Fac Upp Upp War Pro Res Qua Frg Res Tes Acc Com Ac0 Hostile Shots Fired 1096 | . 40 67 2 . 75 . 23 . . . 9 6 3 . 16 4 . . . 25 . 6 . 5 4 . 34 5 25 8 . 32 119 588 Missed 652 | . 7 11 . . 38 . 10 . . . 4 2 . . 9 2 . . . 11 . 2 . 4 2 . 20 3 14 2 . 21 82 408 Deflected 1 | . . . . . 1 . . . . . . . . . . . . . . . . . . . . . . . . . . . . . Hits 444 | . 33 56 2 . 37 . 13 . . . 5 4 3 . 7 2 . . . 14 . 4 . 1 2 . 14 2 11 6 . 11 37 180 Projectile 444 | . 33 56 2 . 37 . 13 . . . 5 4 3 . 7 2 . . . 14 . 4 . 1 2 . 14 2 11 6 . 11 37 180 AOE 1 | . . 1 . . . . . . . . . . . . . . . . . . . . . . . . . . . . . . . . Critical Strikes 33 | . 1 . 1 . 1 . . . . . . . . . . . . . . 1 . . . . . . . . 1 . . . 4 24 Actively Blocked 3 | . . . . . . . . . . . . . . . . . . . . . . . . . . . . . . . . . . 3 Part Disruptions 2 | . . . . . . . . . . . . . . . . . . . . . . . . . . . . . . . . 1 . 1 Actively Blocked 2 | . . . . . . . . . . . . . . . . . . . . . . . . . . . . . . . . 1 . 1 Damage Taken 10334 | . 325 898 31 . 374 . 259 . . . 126 . 114 . 123 39 . . . 531 . 131 . 33 56 . 348 47 293 117 . 263 866 5360 Core 1344 | . 50 162 . . 6 . 37 . . . . . 21 . . 18 . . . 159 . 16 . . . . 98 . 114 16 . 62 83 502 Absorbed by Shields 26 | . . . . . 26 . . . . . . . . . . . . . . . . . . . . . . . . . . . . . Redirected to Shielding 998 | . . . . . . . 13 . . . . . . . 12 18 . . . 204 . 54 . 13 . . 43 . 24 38 . 60 187 332 Ignored by Resistances 680 | . . . . . . . . . . . . . . . . . . . . . . . . . . . . . . 31 . 5 113 531 Regen/Repaired (Parts) 3914 | . 38 . . . 43 . . . . 84 . . . . 36 . . . . 108 . 200 . . . . 130 102 29 90 24 123 334 2573 Core Remaining (%) 75 | 100 . . . 15 . . . . . . . 94 . . . . . . 96 . . . . . . 84 . . 70 . 98 . . 49 Volleys Fired 2408 | 18 56 80 5 . 129 7 143 49 41 . 70 32 98 11 202 25 24 . 47 57 . 326 39 53 114 40 44 24 76 23 61 25 388 101 Largest 2 | 2 2 2 2 . 2 1 1 1 1 . 1 1 1 1 1 1 1 . 1 1 . 1 1 1 1 1 1 1 1 1 1 1 1 1 Hottest 140 | 100 100 120 140 . 113 46 46 46 46 . 60 60 98 46 98 46 46 . 98 98 . 98 98 98 105 105 105 113 113 120 130 130 130 130 Shots Fired 2519 | 36 103 89 9 . 161 7 143 49 41 . 70 32 98 11 202 25 24 . 47 57 . 326 39 53 114 40 44 24 76 23 61 25 388 102 Gun 361 | 36 95 18 5 . 25 . . . . . 3 4 . . . . . . . . . . . . . . . . . . 27 . 148 . Cannon 628 | . . 70 4 . 56 . 6 27 26 . 43 9 24 . 13 . . . 11 16 . 59 16 2 1 4 16 11 31 7 9 18 48 101 Launcher 1515 | . . . . . 78 7 137 22 15 . 20 19 74 11 189 25 24 . 36 41 . 267 23 51 113 36 28 13 45 16 25 7 192 1 Special 15 | . 8 1 . . 2 . . . . . 4 . . . . . . . . . . . . . . . . . . . . . . . Kinetic 271 | . 73 40 . . 47 . 6 27 26 . 43 9 . . . . . . . . . . . . . . . . . . . . . . Thermal 703 | 36 28 49 9 . 34 . . . . . . . 24 . 13 . . . 11 16 . 59 16 2 1 4 16 11 15 7 36 18 196 102 Explosive 1514 | . . . . . 78 7 137 22 15 . 20 19 74 11 189 25 24 . 36 41 . 267 23 51 113 36 28 13 45 16 25 7 192 . Electromagnetic 6 | . 2 . . . . . . . . . . 4 . . . . . . . . . . . . . . . . . . . . . . Impact 5 | . . . . . 1 . . . . . 4 . . . . . . . . . . . . . . . . . . . . . . . Entropic 16 | . . . . . . . . . . . . . . . . . . . . . . . . . . . . . 16 . . . . . Phasic 3 | . . . . . . . . . . . 3 . . . . . . . . . . . . . . . . . . . . . . . Robot Hit Streak 59 | 5 7 20 8 . 11 8 3 5 13 . 14 9 8 11 14 . . . 15 8 . 17 22 . 6 . 7 . 4 2 3 . 59 20 Robot Miss Streak 8 | 3 8 3 1 . 2 . 1 1 2 . 5 1 . . . . . . 5 . . . 1 . . . 1 . 2 2 . . 2 2 Penetration Max . | . . . . . . . . . . . . . . . . . . . . . . . . . . . . . . . . . . . Secondary Targets 3 | . . 3 . . . . . . . . . . . . . . . . . . . . . . . . . . . . . . . . Max Gunslinging Chain 1 | . . 1 . . . . . . . . . . . . . . . . . . . . . . . . . . . . . . . . Capacitor 101 | . . . . . . . . . . . . . . . . . . . . . . . . . . . . . . . . . . 101 Shots Hit Robots 1658 | 20 57 56 6 . 98 5 31 13 33 2 36 26 43 3 28 2 5 9 9 36 . 83 29 9 10 9 38 23 29 47 16 43 595 209 Core Hits 4141 | 11 21 20 4 . 170 4 339 39 34 . 43 28 157 10 400 37 32 5 45 71 . 523 27 53 466 64 67 44 72 48 44 30 1127 106 Critical Kills 7 | . . 1 . . 1 . . . . . . . . . . . . . . . . . 1 . . . . . . . . . . 4 Critical Parts Destroyed 5 | . 1 . . . 1 . . . . . 2 . . . . . . . . . . . . . . . . . . . 1 . . . Critical Strikes 177 | 3 2 1 . . 8 . 2 1 1 . 8 2 2 . 2 . . 2 . 3 . 9 1 . . 1 6 5 8 10 1 4 64 31 Burn 10 | 3 1 . . . 1 . . . . . . . . . . . . . . . . . . . . . . . . . . . 5 . Meltdown 7 | . . 1 . . 1 . . . . . . . . . . . . . . . . . 1 . . . . . . . . . . 4 Destroy 1 | . . . . . . . . . . . . . . . . . . . . . . . . . . . . . . . 1 . . . Blast 6 | . . . . . 1 . . 1 . . 3 1 . . . . . . . . . . . . . . . . . . . . . . Smash 4 | . 1 . . . 1 . . . . . 2 . . . . . . . . . . . . . . . . . . . . . . . Sever 26 | . . . . . . . . . . . . . . . . . . . . . . . . . . . . . . . . . 4 22 Impale 120 | . . . . . 4 . 2 . 1 . 3 1 2 . 2 . . 2 . 3 . 9 . . . 1 6 5 5 10 . 4 55 5 Sunder 3 | . . . . . . . . . . . . . . . . . . . . . . . . . . . . . 3 . . . . . Melee Attacks 2341 | . 7 82 1 . 89 . 78 32 43 2 36 22 129 . 58 8 13 9 13 117 . 195 31 20 9 12 135 51 47 142 35 138 538 249 Impact 109 | . 7 82 1 . 19 . . . . . . . . . . . . . . . . . . . . . . . . . . . . . Slashing 401 | . . . . . . . . . . . . . . . . . . . . . . . . . . . . . . . 3 34 155 209 Piercing 1784 | . . . . . 70 . 78 32 43 . 36 22 128 . 57 8 13 6 10 113 . 194 23 14 1 8 135 49 46 141 32 102 383 40 Sneak Attacks 316 | . 1 . . . 35 . 14 1 1 2 7 1 20 . 14 1 5 3 6 19 . 45 14 6 7 5 18 16 14 22 10 17 8 4 Combat Hostiles 23 | . . . . . . . . . . . . . . . . . . . . . . . . . . 1 6 . . 3 . 6 3 4 Follow-up Attacks 82 | . . . . . 3 . 3 . 1 . 1 . 2 . . . . . . . . . . . . . 1 . . . . 3 51 17 Damage Inflicted 361552 | 254 883 1343 148 . 15550 1652 24199 3187 3386 . 3916 3099 12841 2508 32892 3069 2433 431 3736 7699 . 41389 2609 5074 32319 4688 7178 3364 6655 5638 4949 4611 98392 21460 Guns 5420 | 254 835 200 62 . 414 . . . . . . 64 . . . . . . . . . . . . . . . . . . 687 . 2904 . Cannons 11733 | . . 1085 86 . 848 . . 458 265 . 801 231 . . . . . . 164 . . 168 360 . . . . . 1296 . . . 82 5889 Explosions 260784 | . . . . . 10856 1652 22672 2453 2006 . 2151 1778 10518 2508 31314 2949 2063 . 3346 6049 . 36295 1522 4924 32319 4391 4828 1832 3981 2590 2714 1148 55871 6054 Melee 83487 | . 48 58 . . 3432 . 1527 276 1115 . 836 1026 2323 . 1578 120 370 431 226 1650 . 4926 727 150 . 297 2350 1532 1378 3048 1548 3463 39535 9517 Ramming . | . . . . . . . . . . . . . . . . . . . . . . . . . . . . . . . . . . . Kinetic 3346 | . 642 271 . . 678 . . 458 265 . 801 231 . . . . . . . . . . . . . . . . . . . . . . Thermal 23890 | 254 163 1014 148 . 869 . 1247 . . . . . 621 . 558 . . . 164 1371 . 1267 360 . . . . . 238 . 687 . 2986 11943 Explosive 249161 | . . . . . 10474 1652 21425 2453 2006 . 2151 1778 9606 2508 30756 2949 2063 . 3346 4678 . 35196 1522 4924 32319 4391 4828 1832 3981 2590 2714 1148 55871 . Electromagnetic 482 | . 30 . . . 97 . . . . . . 64 291 . . . . . . . . . . . . . . . . . . . . . Impact 1399 | . 48 58 . . 1165 . . . . . 128 . . . . . . . . . . . . . . . . . . . . . . . Slashing 21673 | . . . . . . . . . . . . . . . . . . . . . . . . . . . . . . . . 595 12826 8252 Piercing 60543 | . . . . . 2267 . 1527 276 1115 . 836 1026 2323 . 1578 120 370 431 226 1650 . 4926 727 150 . 297 2350 1532 1378 3048 1548 2868 26709 1265 Entropic 1058 | . . . . . . . . . . . . . . . . . . . . . . . . . . . . . 1058 . . . . . Highest Corruption 11 | . . . . . . 10 11 . . . . . . . 1 . . . . 3 8 8 . . . . 2 . . 1 1 2 4 1 Average Corruption 2 | . . . . . . 10 6 . . . . . . . 1 . . . . 1 8 3 . . . . 1 . . 1 1 1 3 1 Corruption Purged 33 | . . . . . . . 12 . . . . . . . 1 . . . . 3 . 8 . . . . 2 . . . 1 2 4 . Corruption Blocked 10 | . . . . . . . . . . . . . . 10 . . . . . . . . . . . . . . . . . . . . Effects 121 | . . . . . . 3 24 . . . . . . . 1 . . . . 9 1 26 . . . . 13 . . 7 1 9 9 18 Message Errors 30 | . . . . . . 1 10 . . . . . . . . . . . . . . 10 . . . . 2 . . 1 1 1 3 1 Matter Fused 34 | . . . . . . 1 4 . . . . . . . 1 . . . . 6 . 8 . . . . 6 . . 3 . 2 . 3 Heat Flow Errors 13 | . . . . . . . 2 . . . . . . . . . . . . . . 2 . . . . . . . 1 . 1 2 5 Energy Discharges 19 | . . . . . . . 3 . . . . . . . . . . . . 1 . 1 . . . . 2 . . 2 . 3 3 4 Parts Fused 1 | . . . . . . 1 . . . . . . . . . . . . . . . . . . . . . . . . . . . . Data Loss (minor) 16 | . . . . . . . 5 . . . . . . . . . . . . 1 . 4 . . . . 1 . . . . 2 . 3 Data Loss (major) 5 | . . . . . . . . . . . . . . . . . . . . 1 1 . . . . . 2 . . . . . 1 . Misfires 1 | . . . . . . . . . . . . . . . . . . . . . . . . . . . . . . . . . . 1 Alerts 2 | . . . . . . . . . . . . . . . . . . . . . . 1 . . . . . . . . . . . 1 Overload Shots . | . . . . . . . . . . . . . . . . . . . . . . . . . . . . . . . . . . . Overflow Damage 24188 | . 48 . . . 1663 44 748 160 427 . 634 325 1019 . 1543 152 161 35 166 917 . 2828 356 276 522 202 797 425 543 1010 349 929 6504 1405 Projectiles 435 | . . . . . 31 . . . . . 94 30 . . . . . . . . . . . . . . . . 2 . . . . 278 Explosions 9346 | . . . . . 562 44 625 83 48 . 168 26 630 . 1201 119 51 . 109 503 . 1263 68 276 522 122 297 97 122 174 61 19 1463 693 Melee 14407 | . 48 . . . 1070 . 123 77 379 . 372 269 389 . 342 33 110 35 57 414 . 1565 288 . . 80 500 328 419 836 288 910 5041 434 Knockbacks 14 | . . 1 . . 10 . . . . . 1 2 . . . . . . . . . . . . . . . . . . . . . . Impact 5 | . . 1 . . 3 . . . . . 1 . . . . . . . . . . . . . . . . . . . . . . . Kinetic 7 | . . . . . 5 . . . . . . 2 . . . . . . . . . . . . . . . . . . . . . . Secondary 2 | . . . . . 2 . . . . . . . . . . . . . . . . . . . . . . . . . . . . . Self-Inflicted Damage 223 | . . . . . . . . . . . 53 . 57 . . . . . . 27 . 61 . 15 . . . . . 10 . . . . Shots 7 | . . . . . . . . . . . 1 . 2 . . . . . . 1 . 1 . 1 . . . . . 1 . . . . Rammed . | . . . . . . . . . . . . . . . . . . . . . . . . . . . . . . . . . . . Targets Rammed . | . . . . . . . . . . . . . . . . . . . . . . . . . . . . . . . . . . . Kicked . | . . . . . . . . . . . . . . . . . . . . . . . . . . . . . . . . . . . Crushed . | . . . . . . . . . . . . . . . . . . . . . . . . . . . . . . . . . . . Highest Temperature 297 | 156 117 101 126 . 24 24 280 12 32 . 54 169 210 2 221 113 143 . 189 152 . 245 293 60 252 140 182 . . 152 172 258 297 198 Average Temperature 34 | 58 21 35 52 . 7 11 24 5 11 . 9 30 57 2 70 36 49 . 61 55 . 47 150 31 44 27 64 . . 41 46 31 16 105 Received Heat Transfer 708 | . 24 186 9 . 135 . 9 . . . . . . . 18 9 . . . 9 . 9 . . . . 27 . 45 9 . 27 9 183 Effects 4 | . . . . . . . . . . . . . . . . . . . . . . 3 . . . . . . . . . . 1 . Energy Bleed 1 | . . . . . . . . . . . . . . . . . . . . . . . . . . . . . . . . . 1 . Interference 3 | . . . . . . . . . . . . . . . . . . . . . . 3 . . . . . . . . . . . . Siege Activations . | . . . . . . . . . . . . . . . . . . . . . . . . . . . . . . . . . . . Martial Activations . | . . . . . . . . . . . . . . . . . . . . . . . . . . . . . . . . . . . Shielding Activations 2 | . . . . . 2 . . . . . . . . . . . . . . . . . . . . . . . . . . . . . Total Turns 34 | . . . . . 34 . . . . . . . . . . . . . . . . . . . . . . . . . . . . . Longest Duration 19 | . . . . . 19 . . . . . . . . . . . . . . . . . . . . . . . . . . . . . Robots Disrupted 1 | . . . . . . . . . . . . . 1 . . . . . . . . . . . . . . . . . . . . . Combat Hostiles 1 | . . . . . . . . . . . . . 1 . . . . . . . . . . . . . . . . . . . . . Robots Corrupted 8 | . 1 . . . 5 . . . . . 2 . . . . . . . . . . . . . . . . . . . . . . . Combat Hostiles 2 | . . . . . . . . . . . 2 . . . . . . . . . . . . . . . . . . . . . . . Parts Fried 19 | . 1 . . . 13 . . . . . 5 . . . . . . . . . . . . . . . . . . . . . . . Impact Corruptions 18 | . 2 . . . 13 . . . . . 3 . . . . . . . . . . . . . . . . . . . . . . . Robots Melted 8 | . . 1 . . 1 . . . . . . . . . . . . . 1 . . . 1 . . . . . . . . . . 4 Combat Hostiles 8 | . . 1 . . 1 . . . . . . . . . . . . . 1 . . . 1 . . . . . . . . . . 4 Parts Melted 12 | 2 1 2 . . 1 . . . . . . . . . . . . . 1 1 . . . 1 . . . . . . . . 3 . Heat Transferred 17696 | 962 555 1334 186 . 1076 . 675 . . . . . 300 . 300 . . . 250 900 . 850 550 . . . . . 222 . 962 . 5526 3048 Parts Sabotaged . | . . . . . . . . . . . . . . . . . . . . . . . . . . . . . . . . . . . Parts Stolen . | . . . . . . . . . . . . . . . . . . . . . . . . . . . . . . . . . . . Parts Stripped . | . . . . . . . . . . . . . . . . . . . . . . . . . . . . . . . . . . . Power Chain Reactions 1 | . . . . . . . . . . . . . 1 . . . . . . . . . . . . . . . . . . . . . Alert | -11 -10 -10 -8 -8 -6 -6 -6 -6 -6 -6 -6 -5 -5 -5 -5 -5 -5 -5 -4 -4 -4 -4 -4 -4 -4 -3 -3 -3 -3 -2 -2 -1 -1 -1 ------- Run | Yrd Mat Sub Rec Scr Fac Was Fac Low Low Zio Dee Pro Fac Was Fac Upp Upp Zhi Pro Fac Was Fac Upp Upp War Pro Res Qua Frg Res Tes Acc Com Ac0 Maximum Alert Level 5 | . . . . . 5 4 5 . . . . . 5 4 5 . . . . 4 2 5 . . . . 3 3 2 2 3 3 3 . Low Security (%) 37 | 100 100 . 100 . 40 . . . . . . . 11 . . . . . . 22 . 8 . . . . 21 . 53 58 . 5 81 . Level 1 11 | . . . . . 12 . . . . . . . 8 . . . . . . 8 13 18 . . . . 21 64 42 16 11 . 3 . Level 2 17 | . . . . . 9 . . . . . . . 38 . . . . . . 43 86 9 . . . . 16 4 4 24 70 76 6 . Level 3 15 | . . . . . 15 . 22 . . . . . 17 4 32 . . . . 19 . 12 . . . . 40 31 . . 17 17 7 . Level 4 4 | . . . . . 9 100 39 . . . . . 10 95 5 . . . . 5 . 4 . . . . . . . . . . . . Level 5 6 | . . . . . 11 . . . . . . . 12 . 19 . . . . . . 29 . . . . . . . . . . . . High Security 6 | . . . . . . . 37 . . . . . . . 42 . . . . . . 18 . . . . . . . . . . . . Max Security . | . . . . . . . . . . . . . . . . . . . . . . . . . . . . . . . . . . . Sterilizations 3 | . . . . . . . 1 . . . . . . . 1 . . . . . . 1 . . . . . . . . . . . . Peak Influence 7075 | 15 107 . 95 . 2415 1127 4979 . . . . . 2475 1184 6482 . . . . 1233 428 7075 . . . . 1027 998 432 502 826 927 1062 . Initial 1100 | . 3 . 94 . . 1100 781 . . . . . . 1100 814 . . . . 126 428 278 . . . . 116 561 112 158 227 487 100 . Average 926 | 2 10 . 25 . 584 1110 1962 . . . . . 855 1145 2920 . . . . 531 420 1918 . . . . 529 484 158 248 523 545 655 . Influence Increases 47129 | 50 300 440 44 . 2890 47 4860 694 570 . . 205 3911 104 6150 380 435 15 480 2941 . 8537 155 664 2803 623 2125 798 1057 1522 1032 1503 1794 . Destroy 0b10 Robot/C 20120 | . 120 180 20 . 900 . 2440 460 340 . . 140 1120 . 3040 340 340 . 440 680 . 3440 120 480 2440 460 600 220 340 440 160 420 440 . Destroy 0b10 Robot/NC 2675 | 50 60 . 15 . 400 . 240 15 10 . . 15 205 . 190 5 . 15 . 180 . 415 15 5 55 15 180 100 110 145 80 90 65 . Destroy Leader 2688 | . 30 20 . . 262 . 348 50 10 . . 20 188 . 400 20 20 . 40 150 . 538 20 50 . 40 138 26 38 96 26 90 68 . Allied During Kill 1008 | . . . . . . . 354 4 . . . . 49 . . . . . . 134 . 77 . 9 188 48 73 . . . . 62 10 . Trap Triggered on 0b10 590 | . . . . . 10 . . . . . . . 50 . 30 . . . . 120 . 240 . . . . 20 . 20 40 . 60 . . Successful Hack 921 | . 32 . 6 . 172 . 50 . . . . . 37 . 36 . . . . 44 . 55 . . . . 87 57 48 108 39 111 39 . Disable Machine 4065 | . . . . . 375 . 555 . . . . . 615 . 720 . . . . 495 . 750 . . . . 75 120 165 45 45 45 60 . Anti-Garrison Action 250 | . . . . . 200 . . . . . . . . . . . . . . . . . . . . . . . . . . . 50 . Destroy Structure 12262 | . 13 . 3 . 571 47 768 . . . . . 1422 104 1584 . . . . 1078 . 2872 . . . . 652 230 336 603 637 520 822 . Partial Spotted 285 | . . . . . . . . . . . . . 75 . 15 . . . . 15 . 30 . . . . 30 15 . 45 . 15 45 . Lose Combat Pursuer 2265 | . 45 240 . . . . 105 165 210 . . 30 150 . 135 15 75 . . 45 . 120 . 120 120 60 270 30 . . 45 90 195 . Influence Decreases 46556 | 45 305 243 241 . 475 1600 998 2613 1290 2340 . 204 1437 1649 832 2725 1333 3254 280 1918 825 1860 3009 1420 3835 2883 1299 1596 976 1399 624 2158 890 . Entered New Map 26740 | . 2 . 103 . . 1570 336 1843 582 2340 . . 1 1609 350 2399 787 3239 . 74 795 120 2619 803 3465 2433 57 438 89 124 178 326 58 . Time Decay 12671 | 45 303 223 138 . 455 20 452 770 708 . . 204 656 40 482 326 546 15 280 684 10 719 380 577 370 450 632 538 485 563 446 632 522 . Lost Part 110 | . . 20 . . 20 . . . . . . . . . . . . . . 30 . . . . . . 20 10 . . . 10 . . Lost Ally 1290 | . . . . . . 10 210 . . . . . 180 . . . . . . 230 20 290 10 40 . . 140 10 . . . 140 10 . Purge Threat 5745 | . . . . . . . . . . . . . 600 . . . . . . 900 . 731 . . . . 450 600 402 712 . 1050 300 . Squads Dispatched 269 | . 2 . . . 19 . 38 . . . . . 24 . 36 . . . . 20 . 49 . 1 . 1 14 10 3 15 9 17 11 . Investigation 70 | . 1 . . . 6 . 8 . . . . . 5 . 4 . . . . 8 . 12 . . . . 5 1 . 8 2 8 2 . Extermination 63 | . . . . . 5 . 3 . . . . . 5 . 3 . . . . 5 . 7 . . . . 6 5 3 5 3 5 8 . Reinforcement 34 | . 1 . . . 5 . 3 . . . . . 6 . . . . . . 4 . 8 . . . . 1 3 . 1 . 1 1 . Assault 102 | . . . . . 3 . 24 . . . . . 8 . 29 . . . . 3 . 22 . 1 . 1 2 1 . 1 4 3 . . Garrison . | . . . . . . . . . . . . . . . . . . . . . . . . . . . . . . . . . . . Intercept . | . . . . . . . . . . . . . . . . . . . . . . . . . . . . . . . . . . . Searches Triggered . | . . . . . . . . . . . . . . . . . . . . . . . . . . . . . . . . . . . Construction Impeded 20 | . . . . . 4 . 1 . . . . . 5 . . . . . . 2 . 6 . . . . 1 1 . . . . . . Haulers Reinforced 8 | . . . . . 1 . 2 . . . . . 1 . . . . . . 2 . 1 . . . . . . . 1 . . . . Active Scanning Responses . | . . . . . . . . . . . . . . . . . . . . . . . . . . . . . . . . . . . Cargo Convoy Interrupts . | . . . . . . . . . . . . . . . . . . . . . . . . . . . . . . . . . . . Stealth | -11 -10 -10 -8 -8 -6 -6 -6 -6 -6 -6 -6 -5 -5 -5 -5 -5 -5 -5 -4 -4 -4 -4 -4 -4 -4 -3 -3 -3 -3 -2 -2 -1 -1 -1 --------- Run | Yrd Mat Sub Rec Scr Fac Was Fac Low Low Zio Dee Pro Fac Was Fac Upp Upp Zhi Pro Fac Was Fac Upp Upp War Pro Res Qua Frg Res Tes Acc Com Ac0 Distress Signals 24 | . . . . . 3 . 2 . . . . . 1 . . . . . . 1 . 8 . . . . 5 1 . . . 1 2 . Communications Jammed 93 | . . . . . . . . . . . . . 3 . . . . . . 1 . 7 . . . . 53 . . . . 17 12 . Distress Signals 92 | . . . . . . . . . . . . . 3 . . . . . . . . 7 . . . . 53 . . . . 17 12 . Times Spotted 633 | . 17 21 1 . 22 6 48 2 . . 37 2 25 3 53 5 6 . 4 18 5 39 4 18 20 6 47 17 9 16 8 27 59 88 Peak Tracking Total 37 | . 3 4 1 . 5 4 11 5 13 . 37 3 7 4 13 7 7 . 5 5 5 13 4 6 18 7 6 6 3 5 4 4 12 22 Tactical Retreats 135 | . 4 4 . . . . 4 10 4 . 28 2 6 . 6 1 2 . . 3 . 6 . 5 3 3 10 2 . . 3 3 10 16 Traps | -11 -10 -10 -8 -8 -6 -6 -6 -6 -6 -6 -6 -5 -5 -5 -5 -5 -5 -5 -4 -4 -4 -4 -4 -4 -4 -3 -3 -3 -3 -2 -2 -1 -1 -1 ------- Run | Yrd Mat Sub Rec Scr Fac Was Fac Low Low Zio Dee Pro Fac Was Fac Upp Upp Zhi Pro Fac Was Fac Upp Upp War Pro Res Qua Frg Res Tes Acc Com Ac0 Traps Triggered 65 | . 3 . . . 3 . 1 . . . . . 1 . 1 . . . . 5 . . . . . . 1 1 7 1 2 1 38 . Indirectly . | . . . . . . . . . . . . . . . . . . . . . . . . . . . . . . . . . . . Trap Hack Attempts 195 | . . . . . . . . . . . . . 34 . 23 . . . . 26 . 27 . . . . . . 19 13 . 10 43 . Triggered 2 | . . . . . . . . . . . . . . . 1 . . . . . . . . . . . . . . 1 . . . . Disarmed 10 | . . . . . . . . . . . . . 5 . . . . . . 2 . 1 . . . . . . 1 . . . 1 . Reprogrammed 123 | . . . . . 6 . . . . . . . 15 . 6 . . . . 22 . 31 . . . . 11 . 6 4 . 19 3 . Reused 63 | . . . . . 1 . . . . . 4 . 5 . 3 . . . . 12 . 24 . . . . 2 . 2 4 . 6 . . Traps Extracted 4 | . . . . . . . . . . . . . . . . . . . . . . . . . . . 4 . . . . . . . Installed 11 | . . . . . . . . . . . 8 . . . . . . . . . . 3 . . . . . . . . . . . . Triggered 59 | . . . . . 1 . . . . . . . 5 . 3 . . . . 12 . 24 . . . . 2 . 2 4 . 6 . . Most Traps Carried 8 | . . . . . . . . 8 8 8 8 . . . . . . . . . . . . . . . 4 4 . . . . . . Machines | -11 -10 -10 -8 -8 -6 -6 -6 -6 -6 -6 -6 -5 -5 -5 -5 -5 -5 -5 -4 -4 -4 -4 -4 -4 -4 -3 -3 -3 -3 -2 -2 -1 -1 -1 ---------- Run | Yrd Mat Sub Rec Scr Fac Was Fac Low Low Zio Dee Pro Fac Was Fac Upp Upp Zhi Pro Fac Was Fac Upp Upp War Pro Res Qua Frg Res Tes Acc Com Ac0 Machines Disabled 360 | . . 2 . . 25 . 38 1 3 . 4 . 41 . 59 . 1 . 1 33 . 62 2 . 3 . 5 8 11 3 4 3 28 23 Max in Single Turn 7 | . . 1 . . 4 . 6 1 1 . 2 . 6 . 7 . 1 . 1 6 . 4 1 . 2 . 2 1 1 1 1 1 2 1 Garrison Access 24 | . . . . . 3 . . . . . . . 1 . 1 . . . . 4 . 3 . . . . 1 1 1 4 1 4 . . Phase Generator 1 | . . . . . . . . . . . . . . . . . . . . . . . . . . . . . . . . . 1 . Machines Repaired . | . . . . . . . . . . . . . . . . . . . . . . . . . . . . . . . . . . . Machines Dismantled . | . . . . . . . . . . . . . . . . . . . . . . . . . . . . . . . . . . . Machines Sabotaged . | . . . . . . . . . . . . . . . . . . . . . . . . . . . . . . . . . . . Overloaded Fab Kills . | . . . . . . . . . . . . . . . . . . . . . . . . . . . . . . . . . . . Hacking | -11 -10 -10 -8 -8 -6 -6 -6 -6 -6 -6 -6 -5 -5 -5 -5 -5 -5 -5 -4 -4 -4 -4 -4 -4 -4 -3 -3 -3 -3 -2 -2 -1 -1 -1 --------- Run | Yrd Mat Sub Rec Scr Fac Was Fac Low Low Zio Dee Pro Fac Was Fac Upp Upp Zhi Pro Fac Was Fac Upp Upp War Pro Res Qua Frg Res Tes Acc Com Ac0 Machines Accessed 329 | . 10 2 3 3 25 . 19 3 1 . . 1 25 . 18 1 1 5 . 32 . 32 . . 2 . 25 15 14 33 13 32 12 2 Terminals 173 | . 7 . 3 . 9 . 7 . 1 . . 1 15 . 10 1 1 . . 15 . 15 . . . . 14 10 11 16 8 18 11 . Fabricators 31 | . . . . . 5 . 1 . . . . . 3 . 2 . . . . 5 . 5 . . . . 2 . . 4 1 3 . . Repair Stations 23 | . 1 . . . 3 . . . . . . . 2 . 1 . . . . 3 . 2 . . . . 3 2 1 2 1 2 . . Recycling Units 44 | . 2 . . . 5 . 8 . . . . . 3 . 3 . . . . 5 . 6 . . . . 4 . . 3 . 4 1 . Scanalyzers 17 | . . . . . . . 2 . . . . . 1 . 1 . . . . 1 . 1 . . . . 1 2 1 4 2 1 . . Garrison Access 24 | . . . . . 3 . 1 . . . . . 1 . 1 . . . . 3 . 3 . . . . 1 1 1 4 1 4 . . Total Hacks 1238 | . 37 4 8 20 69 . 58 9 6 . . 1 81 . 61 5 4 17 . 168 . 137 . . 2 . 109 69 47 127 51 93 33 22 Successful 842 | . 23 4 4 20 44 . 29 9 6 . . 1 48 . 35 5 4 17 . 113 . 89 . . 2 . 74 48 35 90 37 63 20 22 Failed 392 | . 14 . 4 . 25 . 29 . . . . . 32 . 26 . . . . 54 . 48 . . . . 34 20 12 37 14 30 13 . Catastrophic 52 | . . . 1 . 7 . 5 . . . . . 4 . 2 . . . . 7 . 11 . . . . 5 3 . 3 1 3 . . Database Lockouts 4 | . . . . . . . . . . . . . 1 . . . . . . 1 . . . . . . 1 1 . . . . . . Manual 500 | . 20 . 7 . 31 . 20 . . 4 . . 41 . 26 . . . . 79 . 70 . . 1 . 36 40 23 48 18 20 16 . Terminals 729 | . 25 . 8 . 22 . 25 . 6 . . 1 54 . 38 5 4 . . 106 . 72 . . . . 62 55 40 78 35 61 32 . Fabricators 112 | . . . . . 20 . 2 . . . . . 7 . 8 . . . . 18 . 21 . . . . 7 . . 17 3 9 . . Repair Stations 76 | . 3 . . . 5 . . . . . . . 4 . 2 . . . . 9 . 12 . . . . 12 7 3 6 2 11 . . Recycling Units 143 | . 9 . . . 16 . 21 . . . . . 9 . 10 . . . . 23 . 23 . . . . 17 . . 9 . 5 1 . Scanalyzers 67 | . . . . . . . 8 . . . . . 6 . 2 . . . . 8 . 3 . . . . 10 6 3 11 9 1 . . Garrison Access 37 | . . . . . 6 . 2 . . . . . 1 . 1 . . . . 4 . 6 . . . . 1 1 1 6 2 6 . . Terminal Hacks 432 | . 11 4 2 20 7 . 8 9 6 . . 1 22 . 14 5 4 17 . 51 . 33 . . 2 . 36 30 21 43 18 33 13 22 Record 70 | . . 3 . 15 . . . 7 6 . . 1 . . . 5 4 5 . . . . . . . . . 2 6 . . . . 16 Part Schematic 36 | . . . . . . . 1 . . . . . 3 . . . . 4 . 8 . 3 . . . . 4 2 . 6 2 3 . . Robot Schematic 1 | . . . . . . . . . . . . . . . . . . . . . . . . . . . . 1 . . . . . . Robot Analysis 34 | . 5 . . 4 1 . . . . . . . 2 . 1 . . 4 . 4 . 1 . . . . 3 3 . . 4 2 . . Prototype ID Bank 26 | . 2 . 1 . . . . . . . . . 1 . 2 . . 4 . 4 . . . . . . 4 2 1 3 . 1 1 . Open Door 11 | . . . . . . . . 2 . . . . . . . . . . . . . . . . 2 . 1 1 . . . 4 1 . Level Access Points 2 | . . . . . . . . . . . . . . . . . . . . . . . . . . . . . . 2 . . . . Branch Access Points 5 | . . . . . . . 1 . . . . . . . 1 . . . . . . 1 . . . . 1 . . 1 . . . . Machine Index 5 | . . . . . . . . . . . . . . . . . . . . 1 . 1 . . . . . 1 1 1 . . . . Terminal Index 6 | . . . 1 . . . . . . . . . 1 . 1 . . . . . . 1 . . . . . . . . 1 . 1 . Recycling Unit Index 1 | . 1 . . . . . . . . . . . . . . . . . . . . . . . . . . . . . . . . . Alert Level 21 | . . . . . . . 1 . . . . . 1 . 1 . . . . 4 . 3 . . . . 2 . 1 5 . 2 1 . Unreport Threat 40 | . . . . . . . . . . . . . 4 . . . . . . 6 . 5 . . . . 3 4 4 5 . 7 2 . Locate Traps 47 | . 3 . . . 3 . 2 . . . . . . . 2 . . . . 6 . 5 . . . . 7 4 4 6 2 1 2 . Disarm Traps 1 | . . . . . . . . . . . . . 1 . . . . . . . . . . . . . . . . . . . . . Reprogram Traps 18 | . . . . . 1 . . . . . . . 1 . . . . . . 5 . 4 . . . . 3 . . 1 . 3 . . Dispatch Records 3 | . . . . . . . . . . . . . . . . . . . . . . 1 . . . . . . 1 . 1 . . . Surveillance Status 1 | . . . . . . . . . . . . . . . . . . . . . . . . . . . . 1 . . . . . . Patrol Status 1 | . . . . . . . . . . . . . . . . . . . . . . . . . . . . . . . . . 1 . Extermination Status 1 | . . . . . . . . . . . . . . . . . . . . . . . . . . . . . . . . 1 . . Reinforcement Status 1 | . . . . . . . . . . . . . . . . . . . . . . . . . . . . . . 1 . . . . Assault Status 2 | . . . . . . . . . . . . . . . . . . . . . . . . . . . . . . 1 . 1 . . Recall Investigation 11 | . . . . . . . . . . . . . . . . . . . . 3 . . . . . . 3 . . 3 2 . . . Recall Extermination 29 | . . . . . . . 1 . . . . . 1 . 1 . . . . 3 . 4 . . . . 3 3 2 5 2 4 . . Recall Reinforcements 9 | . . . . . . . . . . . . . 3 . . . . . . 1 . 1 . . . . . 3 . . . 1 . . Recall Assault 13 | . . . . . . . . . . . . . 3 . 2 . . . . 2 . . . . . . 1 1 . . 2 2 . . Hauler Manifests 11 | . . . . . . . 1 . . . . . 1 . 1 . . . . 2 . 1 . . . . 1 1 . 1 1 1 . . Registered Components 9 | . . . . . 1 . 1 . . . . . . . 1 . . . . 1 . 1 . . . . . 1 . 1 1 . 1 . Registered Prototypes 6 | . . . . . 1 . . . . . . . . . 1 . . . . 1 . 1 . . . . . . . 1 . . 1 . Proto ID Catalog 3 | . . 1 . 1 . . . . . . . . . . . . . . . . . . . . . . . . 1 . . . . . Disengage Seal 2 | . . . . . . . . . . . . . . . . . . . . . . . . . . . . . . . . . 2 . Gate Test 138-A 1 | . . . . . . . . . . . . . . . . . . . . . . . . . . . . . . . . . . 1 Gate Test 138-B 1 | . . . . . . . . . . . . . . . . . . . . . . . . . . . . . . . . . . 1 Gate Test 138-C 1 | . . . . . . . . . . . . . . . . . . . . . . . . . . . . . . . . . . 1 Gate Test 138-END 3 | . . . . . . . . . . . . . . . . . . . . . . . . . . . . . . . . . . 3 Fabricator Hacks 53 | . . . . . 5 . 2 . . . . . 5 . 3 . . . . 8 . 10 . . . . 4 . . 8 2 6 . . Network Status 7 | . . . . . 3 . 1 . . . . . 1 . 1 . . . . . . . . . . . . . . 1 . . . . Load Schematic 22 | . . . . . . . . . . . . . 2 . 1 . . . . 4 . 5 . . . . 2 . . 4 1 3 . . Build 24 | . . . . . 2 . 1 . . . . . 2 . 1 . . . . 4 . 5 . . . . 2 . . 3 1 3 . . Repair Station Hacks 56 | . 2 . . . 3 . . . . . . . 2 . 2 . . . . 7 . 9 . . . . 7 6 3 6 2 7 . . Scan Component 27 | . 1 . . . 1 . . . . . . . 1 . 1 . . . . 3 . 5 . . . . 4 3 1 3 1 3 . . Repair 24 | . 1 . . . 1 . . . . . . . 1 . 1 . . . . 3 . 4 . . . . 2 3 1 3 1 3 . . Refit 5 | . . . . . 1 . . . . . . . . . . . . . . 1 . . . . . . 1 . 1 . . 1 . . Recycling Unit Hacks 42 | . 2 . . . 5 . 6 . . . . . 3 . 2 . . . . 6 . 7 . . . . 5 . . 3 . 3 . . Retrieve Matter 4 | . . . . . 1 . . . . . . . . . . . . . . 1 . 1 . . . . 1 . . . . . . . Retrieve Components 38 | . 2 . . . 4 . 6 . . . . . 3 . 2 . . . . 5 . 6 . . . . 4 . . 3 . 3 . . Scanalyzer 47 | . . . . . . . 5 . . . . . 6 . 2 . . . . 6 . 3 . . . . 7 5 1 5 6 1 . . Insert Component 25 | . . . . . . . 2 . . . . . 2 . 1 . . . . 3 . 1 . . . . 3 3 1 4 4 1 . . Analyze 22 | . . . . . . . 3 . . . . . 4 . 1 . . . . 3 . 2 . . . . 4 2 . 1 2 . . . Garrison Access Hacks 22 | . . . . . 2 . . . . . . . 1 . 1 . . . . 3 . 3 . . . . 1 1 1 4 1 4 . . Seal Access 22 | . . . . . 2 . . . . . . . 1 . 1 . . . . 3 . 3 . . . . 1 1 1 4 1 4 . . Unauthorized Hacks 189 | . 8 . 2 . 22 . 8 . . . . . 8 . 11 . . . . 32 . 24 . . . . 14 6 9 21 8 9 7 . Terminals 79 | . 2 . 2 . 3 . 1 . . . . . 4 . 5 . . . . 9 . 5 . . . . 4 5 9 11 6 7 6 . Track 12 | . . . . . . . . . . . . . . . . . . . . 3 . 1 . . . . . . 4 2 1 . 1 . Assimilate 20 | . . . . . 1 . 1 . . . . . 1 . 2 . . . . 2 . 1 . . . . 2 1 . 2 2 3 2 . Botnet 32 | . 1 . 2 . 1 . . . . . . . 2 . 2 . . . . 3 . 2 . . . . 1 3 4 4 2 3 2 . Disrupt 1 | . . . . . . . . . . . . . . . . . . . . . . . . . . . . . . 1 . . . . Operators 14 | . 1 . . . 1 . . . . . . . 1 . 1 . . . . 1 . 1 . . . . 1 1 1 2 1 1 1 . Fabricators 35 | . . . . . 10 . . . . . . . 1 . 3 . . . . 7 . 6 . . . . 2 . . 4 1 1 . . Report 7 | . . . . . 2 . . . . . . . . . 1 . . . . 1 . 1 . . . . 1 . . 1 . . . . Prioritize 14 | . . . . . 2 . . . . . . . . . 1 . . . . 4 . 3 . . . . 1 . . 1 1 1 . . Liberate 6 | . . . . . 3 . . . . . . . . . . . . . . 1 . 1 . . . . . . . 1 . . . . Haulers 8 | . . . . . 3 . . . . . . . 1 . 1 . . . . 1 . 1 . . . . . . . 1 . . . . Repair Stations 1 | . . . . . . . . . . . . . . . . . . . . . . 1 . . . . . . . . . . . . Mechanics 1 | . . . . . . . . . . . . . . . . . . . . . . 1 . . . . . . . . . . . . Recycling Units 71 | . 6 . . . 8 . 7 . . . . . 3 . 3 . . . . 16 . 12 . . . . 8 . . 6 . 1 1 . Monitor 8 | . 1 . . . 1 . . . . . . . . . . . . . . 3 . 1 . . . . 1 . . 1 . . . . Reject 16 | . 2 . . . 2 . 1 . . . . . . . . . . . . 3 . 3 . . . . 3 . . 1 . . 1 . Recyclers 13 | . 2 . . . 1 . 1 . . . . . . . 1 . . . . 3 . 2 . . . . 2 . . 1 . . . . Mask 10 | . 1 . . . 1 . 1 . . . . . . . . . . . . 3 . 2 . . . . 1 . . 1 . . . . Fedlink 14 | . . . . . 3 . 2 . . . . . 2 . 2 . . . . 1 . 2 . . . . . . . 2 . . . . Scrapoids 10 | . . . . . . . 2 . . . . . 1 . . . . . . 3 . 2 . . . . 1 . . . . 1 . . Scanalyzers 2 | . . . . . . . . . . . . . . . . . . . . . . . . . . . . 1 . . 1 . . . Researchers 2 | . . . . . . . . . . . . . . . . . . . . . . . . . . . . 1 . . 1 . . . Garrison Access 1 | . . . . . 1 . . . . . . . . . . . . . . . . . . . . . . . . . . . . . Jam 1 | . . . . . 1 . . . . . . . . . . . . . . . . . . . . . . . . . . . . . Data Cores Recovered 8 | . . . . . . . . . . . . . . . . . . . . 1 . . . . . . . . 1 2 1 1 2 . Used 4 | . . . . . . . . . . . . . . . . . . . . . . . . . . . . . . 2 . 1 1 . Hacking Detections 257 | . 9 . 3 . 21 . 16 . . . . 1 23 . 17 . 1 . . 28 . 26 . . . . 21 12 8 28 12 22 9 . Full Trace Events 40 | . . . . . 1 . 4 . . . . . 2 . 2 . . . . 4 . 8 . . . . 4 1 . 6 1 6 1 . Feedback Events 4 | . . . . . . . 1 . . . . . . . . . . . . . . . . . . . . 1 . 1 . 1 . . Corruption 2 | . . . . . . . 1 . . . . . . . . . . . . . . . . . . . . . . 1 . . . . Hackware Fried 2 | . . . . . . . . . . . . . . . . . . . . . . . . . . . . 1 . . . 1 . . Feedback Blocked 2 | . . . . . . . . . . . . . . . . . . . . . . 1 . . . . 1 . . . . . . . Robot Schematics Acquired 4 | . . . . . . . . . . 3 . . . . . . . . . . . . . . . . . 1 . . . . . . Robots Built 3 | . . . . . . . 2 . . . . . . . . . . . . . . 1 . . . . . . . . . . . . Authchips . | . . . . . . . . . . . . . . . . . . . . . . . . . . . . . . . . . . . Time 339 | . . . . . . . 152 . . . . . . . . . . . . . . 187 . . . . . . . . . . . . Total Robot Build Rating 17 | . . . . . . . 10 . . . . . . . . . . . . . . 7 . . . . . . . . . . . . Part Schematics Acquired 64 | . . . . . . . 3 . . 14 . . 5 . 1 . . 4 . 9 . 4 . . . . 7 3 . 7 4 3 . . Parts Built 26 | . . . . . 3 . . . . . . . 2 . 2 . . . . 4 . 6 . . . . 2 . . 3 1 3 . . Authchips . | . . . . . . . . . . . . . . . . . . . . . . . . . . . . . . . . . . . Time 1353 | . . . . . 167 . . . . . . . 134 . 23 . . . . 223 . 191 . . . . 119 . . 272 51 173 . . Total Part Build Rating 175 | . . . . . 23 . . . . . . . 11 . 10 . . . . 26 . 32 . . . . 16 . . 24 8 25 . . Parts Repaired 24 | . 1 . . . 1 . . . . . . . 1 . 1 . . . . 3 . 4 . . . . 2 3 1 3 1 3 . . Time 855 | . 26 . . . 56 . . . . . . . 39 . 56 . . . . 141 . 138 . . . . 54 126 18 94 26 81 . . Parts Recycled . | . . . . . . . . . . . . . . . . . . . . . . . . . . . . . . . . . . . Recycled Matter . | . . . . . . . . . . . . . . . . . . . . . . . . . . . . . . . . . . . Retrieved Matter 75 | . . . . . . . . . . . . . . . . . . . . 75 . . . . . . . . . . . . . . Retrieved Components 161 | . 10 . . . 25 . 8 . . . . . 21 . 3 . . . . 28 . 13 . . . . 16 . . 22 . 15 . . Parts Scanalyzed 15 | . . . . . . . 2 . . . . . 2 . 1 . . . . 2 . 1 . . . . 3 1 . 1 2 . . . Part Schematics Acquired 14 | . . . . . . . 2 . . . . . 2 . 1 . . . . 1 . 1 . . . . 3 1 . 1 2 . . . Parts Damaged 3 | . . . . . . . . . . . . . 1 . . . . . . 1 . . . . . . . . . . 1 . . . Bothacking | -11 -10 -10 -8 -8 -6 -6 -6 -6 -6 -6 -6 -5 -5 -5 -5 -5 -5 -5 -4 -4 -4 -4 -4 -4 -4 -3 -3 -3 -3 -2 -2 -1 -1 -1 ------------ Run | Yrd Mat Sub Rec Scr Fac Was Fac Low Low Zio Dee Pro Fac Was Fac Upp Upp Zhi Pro Fac Was Fac Upp Upp War Pro Res Qua Frg Res Tes Acc Com Ac0 Used RIF Installer . | . . . . . . . . . . . . . . . . . . . . . . . . . . . . . . . . . . . Robots Hacked 24 | . . . . . 1 . . . . 2 . . . . 1 . . 3 . 4 . 1 . 3 7 . . 1 . 1 . . . . Non-combat 9 | . . . . . 1 . . . . . . . . . 1 . . . . 4 . 1 . . . . . 1 . 1 . . . . Combat 15 | . . . . . . . . . . 2 . . . . . . . 3 . . . . . 3 7 . . . . . . . . . Robot Hacks Applied 25 | . . . . . 1 . . . . 2 . . . . 1 . . 3 . 4 . 1 . 3 7 . . 2 . 1 . . . . parse_system 16 | . . . . . . . . . . 2 . . . . . . . 3 . . . 1 . 3 7 . . . . . . . . . no_distress 1 | . . . . . . . . . . . . . . . . . . . . . . . . . . . . . . 1 . . . . find_chute 4 | . . . . . 1 . . . . . . . . . . . . . . 3 . . . . . . . . . . . . . . find_recycling 1 | . . . . . . . . . . . . . . . 1 . . . . . . . . . . . . . . . . . . . check_alert 3 | . . . . . . . . . . . . . . . . . . . . 1 . . . . . . . 2 . . . . . . Relay Couplers Released 9 | . . . . . . . . . . . . . . . 2 . . . . 2 . 5 . . . . . . . . . . . . Machine Destruction 6 | . . . . . . . . . . . . . . . 2 . . . . 2 . 2 . . . . . . . . . . . . Programmers 3 | . . . . . . . . . . . . . . . . . . . . . . 3 . . . . . . . . . . . . Fabnet Peak Effective % . | . . . . . . . . . . . . . . . . . . . . . . . . . . . . . . . . . . . Robots Rewired 15 | . . . . . . . . 1 . . . . 5 . . . . . 1 . . . 3 2 . 2 . . . . . 1 . . Allies Hacked 8 | . . . . . . . 1 . . . . . 4 . . . . . . . . 1 . . . . . . . . . 2 . . Hacks Repelled . | . . . . . . . . . . . . . . . . . . . . . . . . . . . . . . . . . . . Allies | -11 -10 -10 -8 -8 -6 -6 -6 -6 -6 -6 -6 -5 -5 -5 -5 -5 -5 -5 -4 -4 -4 -4 -4 -4 -4 -3 -3 -3 -3 -2 -2 -1 -1 -1 -------- Run | Yrd Mat Sub Rec Scr Fac Was Fac Low Low Zio Dee Pro Fac Was Fac Upp Upp Zhi Pro Fac Was Fac Upp Upp War Pro Res Qua Frg Res Tes Acc Com Ac0 Total Allies 94 | . . . . . 3 . 13 1 . . . . 11 . . . . . 1 16 1 17 3 2 . 2 6 1 . . . 12 5 . Largest Group 11 | . . . . . 2 1 11 1 1 1 1 . 9 . . . . . 1 9 1 6 3 5 3 5 6 1 . . . 5 5 . Highest-Rated Group 486 | . . . . . 74 26 296 30 30 30 30 . 409 . . . . . 48 423 46 245 141 220 126 232 323 10 . . . 434 486 . Highest-Rated Ally 135 | . . . . . 37 26 41 30 30 30 30 . 64 . . . . . 48 50 46 54 47 49 49 64 67 10 . . . 135 132 . Total Orders 278 | . . . . . 38 . 17 6 5 3 26 . 26 . . . . . . 29 . 33 . 16 8 25 25 4 . . . 12 5 . STAY 159 | . . . . . 22 . 8 3 3 1 18 . 18 . . . . . . 16 . 20 . 5 2 13 15 2 . . . 9 4 . ROAM 7 | . . . . . . . . . . . . . . . . . . . . 1 . 2 . 2 . 2 . . . . . . . . FOLLOW 84 | . . . . . 16 . 5 3 2 1 4 . 5 . . . . . . 11 . 8 . 6 1 8 8 2 . . . 3 1 . GUARD 22 | . . . . . . . 4 . . . . . 3 . . . . . . 1 . 2 . 3 5 2 2 . . . . . . . DROP 1 | . . . . . . . . . . . . . . . . . . . . . . 1 . . . . . . . . . . . . EXPLORE 1 | . . . . . . . . . . . 1 . . . . . . . . . . . . . . . . . . . . . . . RETURN 4 | . . . . . . . . . . 1 3 . . . . . . . . . . . . . . . . . . . . . . . Ally Attacks 623 | . . . . . 23 . 108 . . . 3 . 47 . . . . . . 111 7 150 . 9 5 . 85 . . . . 48 27 . Total Damage 15443 | . . . . . 190 . 2321 . . . 78 . 1517 . . . . . . 2360 195 2901 . 359 113 . 2850 . . . . 1942 617 . Kills 89 | . . . . . 1 . 22 . . . 1 . 7 . . . . . . 15 . 17 . . . . 16 . . . . 10 . . Allies Corrupted 6 | . . . . . . . . . . . . . . . . . . . . . . 1 . . . . 1 . . . . 3 1 . Allies Melted . | . . . . . . . . . . . . . . . . . . . . . . . . . . . . . . . . . . . Intel | -11 -10 -10 -8 -8 -6 -6 -6 -6 -6 -6 -6 -5 -5 -5 -5 -5 -5 -5 -4 -4 -4 -4 -4 -4 -4 -3 -3 -3 -3 -2 -2 -1 -1 -1 ------- Run | Yrd Mat Sub Rec Scr Fac Was Fac Low Low Zio Dee Pro Fac Was Fac Upp Upp Zhi Pro Fac Was Fac Upp Upp War Pro Res Qua Frg Res Tes Acc Com Ac0 Active Infowar (turns) 69701 | 118 1798 3399 593 3221 2824 57 1821 4379 3141 2597 3337 1012 2472 82 2147 724 1571 100 1266 2722 37 4448 885 1775 1282 1910 2209 1528 1510 1740 1114 2153 7491 2238 Optics 2687 | . . . . . 726 . . . . . . . . . . . . . . . . . . . . . . . . . . . . 1961 Sensors 57654 | . . . . . 2661 57 1821 4375 3141 2519 3337 1012 2472 82 2147 724 1571 100 1266 2722 37 4440 885 1775 1282 1910 2209 1528 1510 1730 1114 2153 7074 . Terrain 7162 | 116 . . . . 30 . . . . . . . . . . . . . . . . . . . . 388 123 750 1314 1361 664 125 2014 277 Structural 19283 | . . 3014 593 3221 3 . 70 352 278 336 121 317 91 60 234 338 271 1 676 1606 . 1920 885 1768 240 1903 985 . . . . . . . Traps 1 | . . . . . . . . . . . . . . . . . . . . 1 . . . . . . . . . . . . . . Seismic 2505 | 2 1798 385 . . . . . . . . . . . . . . . . . . . . . . . . . . . . . 74 246 . T.N.C. 12 | . . . . . . . . . . . . . . . . . . . . . . . . . . . . . . 12 . . . . Machine Analysis 365 | . . . . . 365 . . . . . . . . . . . . . . . . . . . . . . . . . . . . . Cloaking 1502 | . . . . . . . . . . . . 13 37 . 30 18 141 1 185 103 . 40 . 54 . . 37 . 12 98 . 529 204 . Jamming 5519 | . . . . . 27 . . . 1 . . . 110 . . . . . . 602 . 1273 2 10 1 . 521 179 234 642 558 1089 270 . Robot Analysis Total 34 | . 5 . . 4 1 . . . . . . . 2 . 1 . . 4 . 4 . 1 . . . . 3 3 . . 4 2 . . Derelict Logs Recovered 20 | . . 2 . 4 . . . 1 2 2 . 2 . . . 1 1 . 2 . . . 1 2 . . . . . . . . . . Drone Launches 6 | . . . . . . . . . . 1 5 . . . . . . . . . . . . . . . . . . . . . . . Drone Recoveries 4 | . . . . . . . . . . 1 3 . . . . . . . . . . . . . . . . . . . . . . . Exploration | -11 -10 -10 -8 -8 -6 -6 -6 -6 -6 -6 -6 -5 -5 -5 -5 -5 -5 -5 -4 -4 -4 -4 -4 -4 -4 -3 -3 -3 -3 -2 -2 -1 -1 -1 ------------- Run | Yrd Mat Sub Rec Scr Fac Was Fac Low Low Zio Dee Pro Fac Was Fac Upp Upp Zhi Pro Fac Was Fac Upp Upp War Pro Res Qua Frg Res Tes Acc Com Ac0 Turns Passed 79089 | 233 2156 9434 593 4795 2961 57 1821 4388 3147 2644 3337 1012 2472 82 2147 724 1571 100 1266 2722 37 4448 885 1775 1282 1910 2209 1528 1510 1795 1114 2211 7808 2915 Spaces Moved 110723 | 63 1070 3115 331 3153 3333 147 3552 3381 2402 1608 4521 2469 4635 150 3962 1638 1898 208 2287 4704 109 8583 2202 2704 2272 2472 4385 2359 3042 3890 2343 4198 15612 7925 Core 7 | 6 . . . . . . . . . 1 . . . . . . . . . . . . . . . . . . . . . . . . Treads 3380 | . 886 2494 . . . . . . . . . . . . . . . . . . . . . . . . . . . . . . . . Legs 2148 | 57 184 621 24 572 690 . . . . . . . . . . . . . . . . . . . . . . . . . . . . . Wheels 3085 | . . . 307 2581 197 . . . . . . . . . . . . . . . . . . . . . . . . . . . . . Hover . | . . . . . . . . . . . . . . . . . . . . . . . . . . . . . . . . . . . Flight 102103 | . . . . . 2446 147 3552 3381 2402 1607 4521 2469 4635 150 3962 1638 1898 208 2287 4704 109 8583 2202 2704 2272 2472 4385 2359 3042 3890 2343 4198 15612 7925 Fastest Speed 17 | 50 120 160 145 115 28 28 28 28 28 28 27 27 24 24 24 24 28 28 28 22 26 19 26 26 24 24 21 25 25 20 20 17 21 17 Average Speed 45 | 113 153 279 168 149 54 28 28 85 109 149 37 28 28 27 28 28 33 28 31 27 26 26 26 26 24 24 25 25 25 25 29 25 24 21 Slowest Speed 567 | 120 190 470 470 190 190 28 105 567 567 567 567 103 117 28 100 100 100 29 100 109 26 96 26 26 26 24 27 100 99 99 98 31 90 26 Overloaded Moves 172 | . . . . . . . . . . . . . 52 9 18 8 . . . 24 . 3 . . . . 22 . . . . 12 19 5 Propulsion Burnouts . | . . . . . . . . . . . . . . . . . . . . . . . . . . . . . . . . . . . Robots Hopped 367 | . . . . . 7 . 3 1 . . . . 23 . 13 1 . . . 29 . 61 . . . . 11 12 2 3 24 21 153 3 Potential Cave-ins . | . . . . . . . . . . . . . . . . . . . . . . . . . . . . . . . . . . . Cave-ins Triggered . | . . . . . . . . . . . . . . . . . . . . . . . . . . . . . . . . . . . Teleports 4 | . . . . . . . . . . . . . . . . . . . . . . . . . . . . 1 1 . . . 1 1 Exploration Rate (%) 80 | 4 98 82 49 95 52 93 57 99 99 90 92 98 62 93 50 99 99 60 99 81 77 60 99 99 95 99 64 95 37 70 96 70 96 99 Regions Visited 34 Branch Regions 21 Pre-discovered Areas 13 | . . 1 . 5 . . . . 1 1 . . . . . . 1 3 . . . . . 1 . . . . . . . . . . Known Exits Taken 22 | . . . . . . . 1 1 1 1 1 1 . . 1 1 1 1 1 . . 1 1 1 1 1 1 1 1 1 1 1 . . Unknown Exits Taken 6 | 1 1 1 1 1 . . . . . . . . . . . . . . . . . . . . . . . . . . . . 1 . Scrap Searched 44 | . . 4 . 3 . . . 2 5 4 . 4 . . . 5 3 . 5 . . . 2 4 . 3 . . . . . . . . Spaces Dug 940 | . 12 17 1 . 26 . 34 26 16 . 16 2 77 . 35 6 7 . 7 82 . 139 8 8 1 6 72 20 13 80 23 81 88 37 Terrain Destroyed 15161 | . 12 19 2 . 824 89 1167 407 132 . 236 244 835 109 1084 208 350 . 392 648 . 2237 310 608 645 419 384 119 245 250 330 175 1961 720 Melee 671 | . 5 12 1 . 16 . 29 22 13 . 14 1 57 . 22 6 7 . 6 67 . 78 6 6 . 3 57 14 8 73 15 63 33 37 Projectile 286 | . 7 7 1 . 16 . 5 10 17 . 22 3 23 . 13 . . . 5 15 . 46 4 2 1 4 16 9 8 8 8 18 2 16 AOE 14204 | . . . . . 792 89 1133 375 102 . 200 240 755 109 1049 202 343 . 381 566 . 2113 300 600 644 412 311 96 229 169 307 94 1926 667 Terrain Rammed . | . . . . . . . . . . . . . . . . . . . . . . . . . . . . . . . . . . . Walls Destroyed . | . . . . . . . . . . . . . . . . . . . . . . . . . . . . . . . . . . . Machines Disabled . | . . . . . . . . . . . . . . . . . . . . . . . . . . . . . . . . . . . Actions | -11 -10 -10 -8 -8 -6 -6 -6 -6 -6 -6 -6 -5 -5 -5 -5 -5 -5 -5 -4 -4 -4 -4 -4 -4 -4 -3 -3 -3 -3 -2 -2 -1 -1 -1 --------- Run | Yrd Mat Sub Rec Scr Fac Was Fac Low Low Zio Dee Pro Fac Was Fac Upp Upp Zhi Pro Fac Was Fac Upp Upp War Pro Res Qua Frg Res Tes Acc Com Ac0 Total 134648 | 185 1465 3674 357 3257 4217 154 4121 4787 2817 1864 6076 2717 5493 178 4797 1870 2811 238 2786 5835 116 10198 2436 3698 3006 3735 5202 3161 3642 4446 2644 5101 18594 8970 Wait 15448 | 87 272 299 10 36 405 1 235 1255 260 180 1210 119 414 16 366 151 843 1 405 757 8 802 115 879 534 1179 527 640 319 190 137 658 1580 558 Move 110053 | 62 1069 3114 330 3152 3320 146 3545 3378 2401 1607 4520 2468 4589 149 3938 1635 1897 207 2286 4649 108 8472 2201 2703 2271 2471 4363 2336 3037 3882 2295 4155 15379 7918 Hop 265 | . . . . . 6 . 3 1 . . . . 23 . 10 1 . . . 26 . 49 . . . . 10 10 2 3 23 21 74 3 Pick Up 859 | 10 18 24 6 27 50 . 24 22 23 25 70 11 27 . 28 9 4 4 11 26 . 44 8 7 14 4 27 21 26 35 19 15 172 48 Fast Attach 378 | 5 4 7 . 1 26 . 9 4 6 5 15 16 26 . 19 7 5 6 1 25 . 41 4 4 17 4 11 11 4 17 8 16 30 24 Attach 580 | 2 4 5 1 3 48 . 18 16 9 6 30 9 40 1 44 6 9 2 7 28 . 62 11 8 7 8 25 14 28 31 14 9 45 30 Detach 399 | . . 2 . 1 36 . 15 8 7 5 11 4 33 . 35 9 7 . 1 22 . 52 10 8 8 6 14 6 19 18 8 7 30 17 Swap 572 | 1 21 24 1 6 39 . 26 2 10 3 9 10 22 . 22 3 . . 3 45 . 46 5 5 1 4 24 19 19 45 14 47 84 12 Drop 1138 | . 14 28 3 31 72 . 36 15 22 31 100 27 51 1 46 16 9 9 12 48 . 79 12 11 31 7 28 25 23 46 28 25 206 46 Fire 2408 | 18 56 80 5 . 129 7 143 49 41 . 70 32 98 11 202 25 24 . 47 57 . 326 39 53 114 40 44 24 76 23 61 25 388 101 Melee 2161 | . 7 82 1 . 76 . 67 32 38 2 33 21 123 . 58 8 13 9 13 117 . 195 31 20 9 12 129 51 47 142 33 113 466 213 Ram . | . . . . . . . . . . . . . . . . . . . . . . . . . . . . . . . . . . . Kick . | . . . . . . . . . . . . . . . . . . . . . . . . . . . . . . . . . . . Crush . | . . . . . . . . . . . . . . . . . . . . . . . . . . . . . . . . . . . Escape Stasis 154 | . . . . . 10 . . . . . . . . . 6 . . . . 9 . . . . . . . 4 23 1 4 . 97 . Rewire 18 | . . . . . . . . 5 . . . . 13 . . . . . . . . . . . . . . . . . . . . . Trap 206 | . . . . . . . . . . . 8 . 34 . 23 . . . . 26 . 30 . . . . . . 19 13 . 10 43 . Miscellaneous 9 | . . 9 . . . . . . . . . . . . . . . . . . . . . . . . . . . . . . . . Route ------- -11/Scrapyard -10/Materials (discovered 6 exits: [*Mat x3] / [*Min x2] / *Sub) -10/Subcaves (discovered 3 exits: [*Mat x2] / *Rec) -8/Recycling -8/Scraptown (discovered 2 exits: *Fac x2) -6/Factory (discovered 6 exits: *Fac x4 / *Low x2) -6/Waste -6/Factory (discovered 2 exits: *Low x2) -6/Lower Caves (discovered 2 exits: *Low / *Zio) -6/Lower Caves (discovered 2 exits: *Fac / *Zio) -6/Zion (discovered 2 exits: *Dee / *Pro) -6/Deep Caves -5/Proximity Caves -5/Factory (discovered 6 exits: *Fac x3 / *Upp x2 / *Ext) -5/Waste -5/Factory (discovered 5 exits: *Fac / *Upp x2 / *Ext x2) -5/Upper Caves -5/Upper Caves (discovered 2 exits: *Fac / *Zhi) -5/Zhirov -4/Proximity Caves -4/Factory (discovered 5 exits: *Res x3 / *Upp x2) -4/Waste -4/Factory (discovered 3 exits: *Res / *Upp x2) -4/Upper Caves -4/Upper Caves (discovered 2 exits: *Res / *War) -4/Warlord -3/Proximity Caves -3/Research (discovered 6 exits: *Res x3 / *Arm / *Qua x2) -3/Quarantine (discovered 3 exits: *Res / *Sec / *Frg) -3/Protoforge -2/Research (discovered 5 exits: Acc x3 / *Tes x2) -2/Testing -1/Access (discovered 2 exits: *Sur / *Com) -1/Command (discovered 3 exits: *Sur x2 / *Ac0) -1/Access_0 To Epsilon Eridani History --------- Turn | Location | Event 9 | -11/Scrapyard | Discovered new exit (range 15) 234 | -11/Scrapyard | Entered Materials 342 | -10/Materials | Build established: Mutant 365 | -10/Materials | Repaired Lgt. Armor Plating 427 | -10/Materials | Discovered new exit (range 15) 438 | -10/Materials | Discovered new exit (range 10) 484 | -10/Materials | Discovered new exit (range 11) 783 | -10/Materials | Discovered new exit (range 12) 834 | -10/Materials | Derelicts attacked the area 909 | -10/Materials | Discovered new exit (range 9) 1896 | -10/Materials | Discovered new exit (range 4) 2390 | -10/Materials | Entered Subcaves 2777 | -10/Subcaves | Discovered new exit (range 11) 3089 | -10/Subcaves | Ambushed by Subdweller buried in earth 3090 | -10/Subcaves | Core integrity fell below 50% 3278 | -10/Subcaves | Discovered new exit (range 7) 4177 | -10/Subcaves | A swath of the cavern ceiling suddenly collapsed 4301 | -10/Subcaves | Shifting Twisted Machinery released Battle Cannon 4338 | -10/Subcaves | Shifting Twisted Machinery released Sub. Laser 4762 | -10/Subcaves | Core integrity fell below 20% 4815 | -10/Subcaves | A swath of the cavern ceiling suddenly collapsed 5078 | -10/Subcaves | Discovered new exit (range 3) 7245 | -10/Subcaves | Shifting Twisted Machinery released Mak. Spear 7248 | -10/Subcaves | Shifting Twisted Machinery released Sub. Laser 7528 | -10/Subcaves | Visited Clippyterm 7536 | -10/Subcaves | Learned Research machine intel 7536 | -10/Subcaves | Learned Factory emergency access door positions 7703 | -10/Subcaves | Visited 4L-MR0's lab 7707 | -10/Subcaves | Learned Materials garrison access intel 7726 | -10/Subcaves | Found Powered Cannon 11824 | -10/Subcaves | Entered Recycling 12245 | -8/Recycling | Build established: Scavenger-Mutant 12384 | -8/Recycling | Scanned before Scraplab entrance 12400 | -8/Recycling | Discovered new exit (range 11) 12417 | -8/Recycling | Entered Scraptown 12584 | -8/Scraptown | Visited Shadow of the Wyrm 12612 | -8/Scraptown | Visited SPCMW 12647 | -8/Scraptown | Visited Comm Corps 12723 | -8/Scraptown | Scanned Subdweller tech in exchange for log data 12726 | -8/Scraptown | Learned location of Quarantine (-3) 12729 | -8/Scraptown | Learned location of 1 exit from Research 12731 | -8/Scraptown | Learned location of Armory (-3) 12744 | -8/Scraptown | Discovered new exit (range 11) 12860 | -8/Scraptown | Visited UFD Registry 12860 | -8/Scraptown | Registered with UFD as "Steamframe" 12892 | -8/Scraptown | Visited Junk Cannon Lab 12932 | -8/Scraptown | Visited Analyses Database 12966 | -8/Scraptown | Visited Curators Association 13050 | -8/Scraptown | Visited Science Guys 13142 | -8/Scraptown | Visited Junk Repository 13254 | -8/Scraptown | Visited Derelict Rescue Squad 13276 | -8/Scraptown | Visited Infowarlord's Domain 13372 | -8/Scraptown | Discovered new exit (range 5) 13427 | -8/Scraptown | Visited Cartography Club 13463 | -8/Scraptown | Found Surveybot 17 Chip 13808 | -8/Scraptown | Visited Junk Repository 13859 | -8/Scraptown | Visited A0-MCA Data Center 13936 | -8/Scraptown | Visited CPS Storage 13978 | -8/Scraptown | Visited Awakened 13997 | -8/Scraptown | Visited Spacefarers 14089 | -8/Scraptown | Visited Assassins FH 14643 | -8/Scraptown | Delivered Scrap Shield to a Scientist 15571 | -8/Scraptown | Learned location of Upper Caves (-4) 15571 | -8/Scraptown | Learned location of Proximity Caves (-6) 15571 | -8/Scraptown | Learned location of Zion (-6) 15571 | -8/Scraptown | Learned 20 Factory zone layouts 15571 | -8/Scraptown | Learned 24 Factory zone layouts 15571 | -8/Scraptown | Learned 8 Research zone layouts 15571 | -8/Scraptown | Learned 20 Upper Caves zone layouts 15571 | -8/Scraptown | Learned 12 Proximity Caves zone layouts 15571 | -8/Scraptown | Learned 24 Proximity Caves zone layouts 15571 | -8/Scraptown | Learned location of 1 exit from Research 15571 | -8/Scraptown | Learned location of 2 exits from Lower Caves 15571 | -8/Scraptown | Learned location of 3 exits from Upper Caves 15604 | -8/Scraptown | Found Deep Structural Scanner 15651 | -8/Scraptown | Found Exp. Sensor Array 15800 | -8/Scraptown | Build established: Mutant 16309 | -8/Scraptown | Given an A- rating by A0-MCA 16371 | -8/Scraptown | Found A0-MCA's Component Scanner 16456 | -8/Scraptown | Found Prototype Special Weapon 16456 | -8/Scraptown | Identified Junk Cannon 17212 | -8/Scraptown | Entered Factory 17212 | -6/Factory | Evolved 8 slots: Propulsion x3, Utility x5 17213 | -6/Factory | Identified exit to Lower Caves 17214 | -6/Factory | Identified exit to Factory 17321 | -6/Factory | Fabricated Shield Leg (x1) 17634 | -6/Factory | Discovered exit to Factory (range 19) 17848 | -6/Factory | Fabricated Adv. Force Field (x2) 17861 | -6/Factory | Build established: Skirmisher 18248 | -6/Factory | Build established: Mutant 18895 | -6/Factory | Repaired Smartbomb Launcher 18904 | -6/Factory | Found Launcher Loader 18962 | -6/Factory | First assault squad dispatched 19436 | -6/Factory | Build established: Hacker-Sprinter 19479 | -6/Factory | Loaded intel: 8 recycling unit locations 19854 | -6/Factory | Destroyed 9 combat bots 20153 | -6/Factory | High security lockdown imminent 20173 | -6/Factory | Sucked down chute 20173 | -6/Factory | Entered Waste 20175 | -6/Waste | Spotted C-40 Crusher 20188 | -6/Waste | EMP discharged 20188 | -6/Waste | System corruption reached 10% 20198 | -6/Waste | 1 allies followed down the chute 20207 | -6/Waste | Spotted C-40 Crusher 20208 | -6/Waste | Spotted C-40 Crusher 20211 | -6/Waste | Destroyed C-40 Crusher 20213 | -6/Waste | Destroyed C-40 Crusher 20215 | -6/Waste | Spotted C-40 Crusher 20215 | -6/Waste | Destroyed C-40 Crusher 20223 | -6/Waste | Spotted C-40 Crusher 20224 | -6/Waste | Spotted C-40 Crusher 20226 | -6/Waste | Discovered new exit (range 14) 20230 | -6/Waste | Identified exit to Factory 20230 | -6/Waste | Entered Factory 20497 | -6/Factory | Fabricated H-66 Slayer? 21105 | -6/Factory | Scrapoid reinforcements arrived 21244 | -6/Factory | Loaded intel: 7 recycling unit locations 21280 | -6/Factory | First assault squad dispatched 21326 | -6/Factory | Scrapoids reinforcements arrived? 21361 | -6/Factory | High security lockdown imminent 21389 | -6/Factory | Build established: Commander-Sprinter 21437 | -6/Factory | Lost 5 allies 21441 | -6/Factory | High security lockdown engaged 21605 | -6/Factory | Destroyed 16 combat bots 21697 | -6/Factory | Destroyed 14 combat bots 21769 | -6/Factory | Destroyed 10 combat bots 21773 | -6/Factory | Build established: Hacker-Sprinter 21814 | -6/Factory | Destroyed 9 combat bots 21892 | -6/Factory | Destroyed 21 combat bots 22007 | -6/Factory | Sterilization system engaged 22007 | -6/Factory | Non-combat units ordered to evacuate 22051 | -6/Factory | Entered Lower Caves 22052 | -6/Lower Caves | Identified exit to Lower Caves 22053 | -6/Lower Caves | UFD Scientist delivered a prototype 22055 | -6/Lower Caves | Found Prototype Protection 22059 | -6/Lower Caves | Identified Enh. Scrap Shield 22164 | -6/Lower Caves | A Derelict revealed a hidden shortcut to a safe place 22167 | -6/Lower Caves | Identified exit to Zion 22170 | -6/Lower Caves | Encountered a Warlord checkpoint 22179 | -6/Lower Caves | Entered an active Warlord outpost 22182 | -6/Lower Caves | Learned Factory emergency access door positions 22183 | -6/Lower Caves | Learned 8 Factory zone layouts 22183 | -6/Lower Caves | Learned Factory security intel 22183 | -6/Lower Caves | Learned Armory terminal intel 22627 | -6/Lower Caves | Build established: Hacker-Scout 24696 | -6/Lower Caves | Build established: Hauler-Mutant 26439 | -6/Lower Caves | Entered another Lower Caves area 26439 | -6/Lower Caves | Accompanied by 1 ally 26439 | -6/Lower Caves | Discovered exit to Factory (range 12) 26635 | -6/Lower Caves | Encountered a Warlord checkpoint 26636 | -6/Lower Caves | Learned location of Extension (-5) 27039 | -6/Lower Caves | Build established: Hacker-Scout 27159 | -6/Lower Caves | Destroyed 13 combat bots 27160 | -6/Lower Caves | Learned Research garrison access intel 27160 | -6/Lower Caves | Learned Factory garrison access intel 27160 | -6/Lower Caves | Learned Factory stockpile data 27160 | -6/Lower Caves | Learned Extension trap positions 27160 | -6/Lower Caves | Learned 8 Factory zone layouts 27385 | -6/Lower Caves | Build established: Hacker-Sprinter 27786 | -6/Lower Caves | Build established: Hauler-Mutant 29586 | -6/Lower Caves | Entered Zion 29586 | -6/Zion | Accompanied by 1 ally 29587 | -6/Zion | Identified exit to Proximity Caves 29694 | -6/Zion | Learned Factory garrison access intel 30330 | -6/Zion | Found CR-A16's Pointy Stick 30928 | -6/Zion | Given the Hacking Drone Bay 30974 | -6/Zion | Acquired unknown access codes intercepted by a Zionite 30997 | -6/Zion | Given A8's code to call for help 31024 | -6/Zion | Learned Factory trap positions 31237 | -6/Zion | Found Prototype Device 31237 | -6/Zion | Identified Hacking Drone Bay 31277 | -6/Zion | Turned away by Imprinter 31318 | -6/Zion | Opened final containment barrier to the Deep Caves 31329 | -6/Zion | Discovered new exit (range 10) 31336 | -6/Zion | Saw the warning signs outside the Deep Caves entrance 31338 | -6/Zion | Identified exit to Deep Caves 31659 | -6/Zion | Found GAL Module 32230 | -6/Zion | Entered Deep Caves 32230 | -6/Deep Caves | Accompanied by 1 ally 32231 | -6/Deep Caves | Identified exit to Proximity Caves 32780 | -6/Deep Caves | Allies destroyed Z-Imprinter 32941 | -6/Deep Caves | Z-Facility disabled 33072 | -6/Deep Caves | Found Prototype Protection 33072 | -6/Deep Caves | Identified Zio. Heavy Carapace 33300 | -6/Deep Caves | Build established: Scout 35011 | -6/Deep Caves | Found Prototype Protection 35024 | -6/Deep Caves | Identified Zio. Weapon Casing 35376 | -6/Deep Caves | Build established: Derelict-Mutant 35454 | -6/Deep Caves | Spotted AG-73133 35455 | -6/Deep Caves | Triggered Deep Caves wall 35455 | -6/Deep Caves | Spotted AS-33970 35455 | -6/Deep Caves | Spotted AS-25299 35455 | -6/Deep Caves | Found Prototype Device 35491 | -6/Deep Caves | Lost 3 allies 35507 | -6/Deep Caves | Destroyed 10 combat bots 35567 | -6/Deep Caves | Entered Proximity Caves 35570 | -5/Proximity Caves | Learned 4 Factory zone layouts 35575 | -5/Proximity Caves | Spotted B-75 Beast 35607 | -5/Proximity Caves | Unaware initiated a cargo recovery operation 35643 | -5/Proximity Caves | Learned 4 Factory zone layouts 35776 | -5/Proximity Caves | Found Prototype Device 35776 | -5/Proximity Caves | Identified Thermal Barrier 35789 | -5/Proximity Caves | Identified Cloak of Protection 36181 | -5/Proximity Caves | Build established: Hacker-Scout 36424 | -5/Proximity Caves | Destroyed B-75 Beast 36579 | -5/Proximity Caves | Entered Factory 36579 | -5/Factory | Evolved 2 slots: Propulsion x1, Utility x1 36580 | -5/Factory | Identified exit to Upper Caves 36581 | -5/Factory | Identified exit to Factory 36581 | -5/Factory | Identified exit to Extension 36582 | -5/Factory | Loaded intel: 106 trap records 36586 | -5/Factory | Loaded intel: 4 garrison access locations 36914 | -5/Factory | Loaded intel: 8 recycling unit locations 37038 | -5/Factory | Build established: Hacker-Sprinter 37179 | -5/Factory | First assault squad dispatched 37411 | -5/Factory | Fabricated Exp. Utility Shielding? 37701 | -5/Factory | Repaired Broken Imp. Corruption Screen 38214 | -5/Factory | Scrapoids reinforcements arrived? 38250 | -5/Factory | Fabricated Cld. Nuclear Pulse Thruster? 38263 | -5/Factory | Central database locked down 38337 | -5/Factory | Lost 4 allies 38692 | -5/Factory | Spotted B-75 Beast 38711 | -5/Factory | Destroyed B-75 Beast 38741 | -5/Factory | Lost 3 allies 38762 | -5/Factory | Destroyed 7 combat bots 39033 | -5/Factory | High security lockdown imminent 39051 | -5/Factory | Manually triggered Chute Trap 39051 | -5/Factory | Sucked down chute 39051 | -5/Factory | Entered Waste 39058 | -5/Waste | Spotted C-40 Crusher 39066 | -5/Waste | EMP discharged 39075 | -5/Waste | Destroyed C-40 Crusher 39075 | -5/Waste | Spotted C-40 Crusher 39079 | -5/Waste | Destroyed C-40 Crusher 39083 | -5/Waste | Destroyed C-40 Crusher 39084 | -5/Waste | Spotted C-40 Crusher 39095 | -5/Waste | Destroyed C-40 Crusher 39100 | -5/Waste | Spotted C-40 Crusher 39115 | -5/Waste | Discovered new exit (range 12) 39119 | -5/Waste | Identified exit to Factory 39127 | -5/Waste | Destroyed C-40 Crusher 39127 | -5/Waste | Destroyed C-40 Crusher 39133 | -5/Waste | Entered Factory 39134 | -5/Factory | Loaded intel: 4 garrison access locations 39418 | -5/Factory | Fabricated Launcher Loader (x2) 39433 | -5/Factory | First assault squad dispatched 39583 | -5/Factory | Loaded intel: 8 recycling unit locations 39679 | -5/Factory | Repaired Smartbomb Launcher 39797 | -5/Factory | Build established: Hacker-Scout 39872 | -5/Factory | Discovered exit to Factory (range 11) 39890 | -5/Factory | Destroyed 10 combat bots 40335 | -5/Factory | Destroyed 14 combat bots 40376 | -5/Factory | High security lockdown imminent 40397 | -5/Factory | Destroyed 10 combat bots 40423 | -5/Factory | Build established: Hacker-Sprinter 40456 | -5/Factory | High security lockdown engaged 40629 | -5/Factory | Destroyed 9 combat bots 40722 | -5/Factory | Destroyed 10 combat bots 40777 | -5/Factory | Build established: Sprinter 40797 | -5/Factory | Destroyed 19 combat bots 40949 | -5/Factory | Destroyed 26 combat bots 40951 | -5/Factory | Sterilization system engaged 40951 | -5/Factory | Non-combat units ordered to evacuate 41051 | -5/Factory | Combat units ordered to evacuate 41092 | -5/Factory | Destroyed 23 combat bots 41133 | -5/Factory | Destroyed 10 combat bots 41251 | -5/Factory | Ambient heat levels rising (+10) 41280 | -5/Factory | Entered Upper Caves 41281 | -5/Upper Caves | Identified exit to Upper Caves 41530 | -5/Upper Caves | Learned Factory garrison access intel 41557 | -5/Upper Caves | Build established: Scout 41979 | -5/Upper Caves | Learned Research stockpile data 41979 | -5/Upper Caves | Learned Armory trap positions 41979 | -5/Upper Caves | Learned location of 1 exit from Research 42004 | -5/Upper Caves | Entered another Upper Caves area 42005 | -5/Upper Caves | Identified exit to Zhirov 42420 | -5/Upper Caves | Build established: Ninja 42787 | -5/Upper Caves | Build established: Scout 42886 | -5/Upper Caves | Attracted the attention of an 0b10 base 42982 | -5/Upper Caves | Learned Armory trap positions 43162 | -5/Upper Caves | Build established: Sprinter 43575 | -5/Upper Caves | Entered Zhirov 43575 | -5/Zhirov | Discovered new exit (range 3) 43577 | -5/Zhirov | Identified exit to Proximity Caves 43582 | -5/Zhirov | Met Zhirov 43592 | -5/Zhirov | Learned location of Command (-1) 43592 | -5/Zhirov | Learned location of Testing (-2) 43594 | -5/Zhirov | Zhirov requested help retrieving the SGEMP Prototype 43601 | -5/Zhirov | Found Alien Artifact 43601 | -5/Zhirov | Identified Integrated Reactor 43601 | -5/Zhirov | Installed Integrated Reactor, increased core energy generation (+10) 43662 | -5/Zhirov | Found Alien Artifact 43675 | -5/Zhirov | Entered Proximity Caves 43706 | -4/Proximity Caves | Learned 12 Research zone layouts 43917 | -4/Proximity Caves | Learned Research terminal intel 43945 | -4/Proximity Caves | Build established: Ninja 44941 | -4/Proximity Caves | Entered Factory 44941 | -4/Factory | Accompanied by 1 ally 44941 | -4/Factory | Evolved 2 slots: Utility x2 44942 | -4/Factory | Loaded intel: 4 garrison access locations 44949 | -4/Factory | Identified Transdimensional Reconstructor 45117 | -4/Factory | Build established: Hacker-Scout 45509 | -4/Factory | Central database locked down 45579 | -4/Factory | Discovered new exit (range 9) 45807 | -4/Factory | Scrapoids reinforcements arrived? 45864 | -4/Factory | Fabricated Exp. Hacking Suite (x1) 45977 | -4/Factory | Fabricated Exp. Signal Interpreter (x1) 46257 | -4/Factory | Discovered new exit (range 6) 46332 | -4/Factory | Scrapoids reinforcements arrived? 46363 | -4/Factory | Identified exit to Upper Caves 46519 | -4/Factory | Build established: Wizard-Sprinter 46543 | -4/Factory | Fabricated Exp. Utility Shielding (x1) 46552 | -4/Factory | Lost 3 allies 46691 | -4/Factory | First assault squad dispatched 46764 | -4/Factory | Discovered new exit (range 10) 46976 | -4/Factory | Repaired Broken Adv. Gravity Neutralizer 47139 | -4/Factory | Discovered new exit (range 16) 47171 | -4/Factory | Build established: Wizard-Scout 47243 | -4/Factory | Spotted B-86 Titan 47355 | -4/Factory | Discovered new exit (range 9) 47364 | -4/Factory | Repaired Adv. Transmission Jammer 47379 | -4/Factory | Fabricated Exp. Hacking Suite (x1) 47394 | -4/Factory | Repaired Exp. Utility Shielding? 47412 | -4/Factory | Loaded intel: 6 recycling unit locations 47435 | -4/Factory | Scrapoids reinforcements arrived? 47441 | -4/Factory | Identified exit to Research 47475 | -4/Factory | Lost 5 allies 47663 | -4/Factory | Sucked down chute 47663 | -4/Factory | Entered Waste 47664 | -4/Waste | Met a frightened Derelict 47664 | -4/Waste | Identified exit to Factory 47668 | -4/Waste | Spotted C-40 Crusher 47670 | -4/Waste | Spotted C-40 Crusher 47671 | -4/Waste | Spotted C-40 Crusher 47672 | -4/Waste | Spotted C-40 Crusher 47678 | -4/Waste | EMP discharged 47678 | -4/Waste | Spotted C-40 Crusher 47678 | -4/Waste | Spotted C-40 Crusher 47700 | -4/Waste | Entered Factory 47776 | -4/Factory | Discovered exit to Research (range 9) 48026 | -4/Factory | Scrapoids reinforcements arrived? 48143 | -4/Factory | Loaded intel: 7 recycling unit locations 48266 | -4/Factory | Build established: Hacker-Ninja 48473 | -4/Factory | Repaired Broken Smartbomb Launcher 48781 | -4/Factory | Repaired Cld. Nuclear Pulse Thruster 48880 | -4/Factory | Scrapoid reinforcements arrived 48940 | -4/Factory | Fabricated System Restoration Module (x2) 49121 | -4/Factory | Fabricated M-30 Cleanser (x1) 49224 | -4/Factory | Fabricated Exp. Hacking Suite (x1) 49317 | -4/Factory | Fabricated Exp. Hacking Suite (x1) 49700 | -4/Factory | First assault squad dispatched 50128 | -4/Factory | Build established: Wizard-Sprinter 50186 | -4/Factory | Fabricated Matter Compressor (x2) 50954 | -4/Factory | Repaired Exp. Utility Shielding? 50986 | -4/Factory | Repaired Smartbomb Launcher 51058 | -4/Factory | Build established: Hacker-Sprinter 51169 | -4/Factory | Destroyed 8 combat bots 51343 | -4/Factory | High security lockdown imminent 51364 | -4/Factory | Destroyed 8 combat bots 51423 | -4/Factory | High security lockdown engaged 51607 | -4/Factory | Destroyed 10 combat bots 51746 | -4/Factory | Destroyed 10 combat bots 51814 | -4/Factory | Sterilization system engaged 51814 | -4/Factory | Non-combat units ordered to evacuate 51854 | -4/Factory | Destroyed 34 combat bots 51914 | -4/Factory | Combat units ordered to evacuate 52086 | -4/Factory | Destroyed 18 combat bots 52114 | -4/Factory | Ambient heat levels rising (+10) 52148 | -4/Factory | Entered Upper Caves 52148 | -4/Upper Caves | Accompanied by 1 ally 52160 | -4/Upper Caves | Attracted the attention of an 0b10 checkpoint 52199 | -4/Upper Caves | Encountered a Warlord checkpoint 52392 | -4/Upper Caves | Discovered new exit (range 12) 52464 | -4/Upper Caves | Learned location of 1 exit from Proximity Caves 53030 | -4/Upper Caves | Identified exit to Upper Caves 53033 | -4/Upper Caves | Entered another Upper Caves area 53033 | -4/Upper Caves | Accompanied by 3 allies 53068 | -4/Upper Caves | Discovered exit to Research (range 10) 53193 | -4/Upper Caves | Build established: Hacker-Ninja 53409 | -4/Upper Caves | Discovered new exit (range 17) 53754 | -4/Upper Caves | Build established: Hacker-Scout 54060 | -4/Upper Caves | Attracted the attention of an 0b10 outpost 54579 | -4/Upper Caves | Build established: Hacker-Ninja 54637 | -4/Upper Caves | Spotted B-86 Titan 54642 | -4/Upper Caves | Revealed the true nature of CR-A16's Pointy Stick 54645 | -4/Upper Caves | Destroyed B-86 Titan 54784 | -4/Upper Caves | Identified exit to Warlord 54808 | -4/Upper Caves | Entered Warlord 54808 | -4/Warlord | Accompanied by 3 allies 54809 | -4/Warlord | Identified exit to Proximity Caves 54920 | -4/Warlord | Found Prototype Device 54920 | -4/Warlord | Identified System Purifier 54952 | -4/Warlord | Received a Watcher feed algorithm from an ecstatic Tinkerer 54952 | -4/Warlord | Ran a Watcher feed algorithm 54956 | -4/Warlord | Rebuked by Warlord 54978 | -4/Warlord | Warlord's base attacked by MAIN.C 54992 | -4/Warlord | Found Prototype Energy Gun 54992 | -4/Warlord | Identified Vortex Rifle 54994 | -4/Warlord | Found Prototype Energy Cannon 54994 | -4/Warlord | Identified Vortex Cannon 55028 | -4/Warlord | Found Vortex Rifle 55030 | -4/Warlord | Found Vortex Cannon 55171 | -4/Warlord | Destroyed 19 combat bots 55209 | -4/Warlord | Destroyed 17 combat bots 55289 | -4/Warlord | Warlord forces counterattacked 55314 | -4/Warlord | Destroyed Executioner 55351 | -4/Warlord | Build established: Hacker-Sprinter 55354 | -4/Warlord | Destroyed 13 combat bots 55383 | -4/Warlord | Destroyed Striker 55384 | -4/Warlord | Spotted Executioner 55386 | -4/Warlord | Spotted Striker 55390 | -4/Warlord | Destroyed Executioner 55411 | -4/Warlord | Destroyed 16 combat bots 55417 | -4/Warlord | Lost 3 allies 55445 | -4/Warlord | Opened side exit 55491 | -4/Warlord | Spotted Striker 55503 | -4/Warlord | Found Prototype Processor 55503 | -4/Warlord | Identified Exp. Core Analyzer 55528 | -4/Warlord | Lost 9 allies 55582 | -4/Warlord | Destroyed Striker 55589 | -4/Warlord | Spotted Striker 55613 | -4/Warlord | Destroyed 8 combat bots 55620 | -4/Warlord | Lost 6 allies 55653 | -4/Warlord | Warlord base infiltrated, sounded retreat 55696 | -4/Warlord | Destroyed Executioner 55696 | -4/Warlord | Destroyed Executioner 55713 | -4/Warlord | Destroyed B-90 Cyclops 55734 | -4/Warlord | Destroyed 15 combat bots 55797 | -4/Warlord | Spotted Executioner 55803 | -4/Warlord | Destroyed Executioner 55830 | -4/Warlord | Destroyed 15 combat bots 55894 | -4/Warlord | Destroyed Striker 55916 | -4/Warlord | Destroyed 16 combat bots 56090 | -4/Warlord | Entered Proximity Caves 56090 | -3/Proximity Caves | Accompanied by 3 allies 56100 | -3/Proximity Caves | Destroyed 8 combat bots 56389 | -3/Proximity Caves | Build established: Hacker-Scout 56409 | -3/Proximity Caves | Spotted B-86 Titan 56411 | -3/Proximity Caves | Destroyed B-86 Titan 56998 | -3/Proximity Caves | Attracted the attention of an 0b10 outpost 57144 | -3/Proximity Caves | Destroyed 7 combat bots 58000 | -3/Proximity Caves | Entered Research 58000 | -3/Research | Accompanied by 5 allies 58000 | -3/Research | Evolved 2 slots: Propulsion x1, Utility x1 58001 | -3/Research | Identified exit to Armory 58002 | -3/Research | Identified exit to Research 58003 | -3/Research | Identified exit to Quarantine 58005 | -3/Research | Loaded intel: 113 machine locations 58006 | -3/Research | Loaded intel: 25 terminal locations 58007 | -3/Research | Loaded intel: 4 garrison access locations 58469 | -3/Research | P-80 Master assimilated allied Warden 8a 58633 | -3/Research | Build established: Wizard-Ninja 59000 | -3/Research | First assault squad dispatched 59068 | -3/Research | Scrapoids reinforcements arrived? 59111 | -3/Research | Spotted B-86 Titan 59112 | -3/Research | Destroyed B-86 Titan 59221 | -3/Research | Repaired Smartbomb Launcher 59535 | -3/Research | Fabricated Exp. Terrain Scanner (x1) 59549 | -3/Research | Fabricated Exp. Sensor Array (x1) 59643 | -3/Research | Central database locked down 59814 | -3/Research | Spotted B-86 Titan 59820 | -3/Research | Destroyed B-86 Titan 59859 | -3/Research | Repaired Exp. Utility Shielding 60209 | -3/Research | Entered Quarantine 60224 | -3/Quarantine | Discovered exit to Research (range 28) 60269 | -3/Quarantine | Found Alien Artifact 60344 | -3/Quarantine | Build established: Wizard-Sprinter 60435 | -3/Quarantine | Found Alien Artifact 60435 | -3/Quarantine | Identified Phase Redirector 60459 | -3/Quarantine | First assault squad dispatched 60559 | -3/Quarantine | Repaired Cld. Nuclear Pulse Thruster 60577 | -3/Quarantine | Found Alien Artifact 60589 | -3/Quarantine | Identified Core Reset Matrix 60613 | -3/Quarantine | Repaired Imp. Diametric Drive 60758 | -3/Quarantine | Central database locked down 60884 | -3/Quarantine | Spotted Alpha 7 60889 | -3/Quarantine | Found Alien Launcher 60926 | -3/Quarantine | Found Alien Artifact 60926 | -3/Quarantine | Identified Phase Armor 60943 | -3/Quarantine | Found Alien Artifact 60943 | -3/Quarantine | Identified Subatomic Replicator 61012 | -3/Quarantine | Repaired Smartbomb Launcher? 61018 | -3/Quarantine | Found Alien Artifact 61019 | -3/Quarantine | Identified Dimensional Node Initializer 61019 | -3/Quarantine | Initialized slip node 61021 | -3/Quarantine | Warped through subspace to slip node 61022 | -3/Quarantine | Found Dimensional Node Initializer 61025 | -3/Quarantine | Found Alien Artifact 61160 | -3/Quarantine | Exp. Hacking Suite fried by hacking feedback 61165 | -3/Quarantine | Found Alien Reactor 61291 | -3/Quarantine | Spotted Fortress 61308 | -3/Quarantine | Discovered new exit (range 6) 61308 | -3/Quarantine | Discovered new exit (range 7) 61309 | -3/Quarantine | Identified exit to Section 7 61310 | -3/Quarantine | Identified exit to Protoforge 61607 | -3/Quarantine | Build established: Hacker-Scout 61737 | -3/Quarantine | Entered Protoforge 61768 | -3/Protoforge | Discovered exit to Research (range 29) 61993 | -3/Protoforge | Initialized slip node 62156 | -3/Protoforge | Spotted Hotshot 62163 | -3/Protoforge | Destroyed Hotshot 62165 | -3/Protoforge | Destroyed Hotshot 62170 | -3/Protoforge | Destroyed Hotshot 62553 | -3/Protoforge | Found Cep. Recoil Nullifier 62568 | -3/Protoforge | Found Cep. Weapon Articulator 62589 | -3/Protoforge | Spotted V204-e 62590 | -3/Protoforge | Spotted V502-r 62597 | -3/Protoforge | Found Cep. Antigrav Storage Unit 62599 | -3/Protoforge | Found Cep. Matter Streamer 62601 | -3/Protoforge | Found Cep. NT7 Matterbank 62602 | -3/Protoforge | Found Cep. Chromion Battery 62619 | -3/Protoforge | Spotted Decapitator 62664 | -3/Protoforge | Superfortress began startup sequence 62698 | -3/Protoforge | Found Crosscalibrator 62735 | -3/Protoforge | Found Cep. Concussive Dispersal Blaster 62762 | -3/Protoforge | Spotted Immortal 62833 | -3/Protoforge | Destroyed Hotshot 62836 | -3/Protoforge | Destroyed Hotshot 62840 | -3/Protoforge | Destroyed Hotshot 62936 | -3/Protoforge | Found Cep. Rapid Grenade Launcher 63009 | -3/Protoforge | Additional patrols dispatched to research labs 63022 | -3/Protoforge | Found Cep. Navigation Harness 63029 | -3/Protoforge | Found Alien Artifact 63073 | -3/Protoforge | Found Transdimensional Reconstructor 63196 | -3/Protoforge | Warped through subspace to slip node 63217 | -3/Protoforge | Repaired Smartbomb Launcher? 63244 | -3/Protoforge | Identified Cep. Nanofilaments [Tensile] 63247 | -3/Protoforge | Entered Research 63247 | -2/Research | Evolved 2 slots: Power x1, Utility x1 63248 | -2/Research | Installed Cep. Nanofilaments [Tensile], 3 resistances modified: KI +20%, TH -10%, I +20% 63260 | -2/Research | Identified Hpw. Transdimensional Reconstructor 63268 | -2/Research | Found Quantum Capacitor 63541 | -2/Research | Found Quantum Capacitor 63562 | -2/Research | Build established: Hacker-Ninja 63802 | -2/Research | Discovered new exit (range 30) 63852 | -2/Research | Identified exit to Testing 63870 | -2/Research | Loaded intel: 4 recycling unit locations 63870 | -2/Research | Found Prototype Device 63933 | -2/Research | Identified exit to Access 63966 | -2/Research | Spotted B-90 Cyclops 63966 | -2/Research | Destroyed B-90 Cyclops 64007 | -2/Research | Found Exp. Terrain Scan Processor 64119 | -2/Research | Found Adv. Force Booster 64270 | -2/Research | Build established: Wizard-Scout 64352 | -2/Research | Repaired Imp. Diametric Drive? 64368 | -2/Research | Spotted B-90 Cyclops 64369 | -2/Research | Destroyed B-90 Cyclops 64370 | -2/Research | Fabricated Femtoactuators? 64391 | -2/Research | Repaired Smartbomb Launcher? 64459 | -2/Research | Fabricated Electron Diverter (x1) 64482 | -2/Research | Fabricated Molecular Scythe (x1) 64485 | -2/Research | Spotted B-90 Cyclops 64486 | -2/Research | Destroyed B-90 Cyclops 64706 | -2/Research | Build established: Wizard-Sprinter 64734 | -2/Research | Repaired Imp. Propulsion Shielding 64747 | -2/Research | First assault squad dispatched 65009 | -2/Research | Build established: Wizard-Scout 65042 | -2/Research | Entered Testing 65087 | -2/Testing | Found Prototype Energy Cannon 65087 | -2/Testing | Identified Null Cannon 65205 | -2/Testing | Repaired Exp. Utility Shielding 65293 | -2/Testing | Identified Matter Drive 65293 | -2/Testing | Identified Sigix Terminator 65301 | -2/Testing | Found Prototype Energy Gun 65360 | -2/Testing | Identified Warp Gun 65433 | -2/Testing | Discovered exit to Access (range 17) 65536 | -2/Testing | Fabricated Nanosword? 65755 | -2/Testing | Found Prototype Protection 65756 | -2/Testing | Identified Med. Regenerative Plating 65760 | -2/Testing | Found Prototype Protection 65792 | -2/Testing | First assault squad dispatched 65904 | -2/Testing | Spotted Striker 65904 | -2/Testing | Spotted Striker 65921 | -2/Testing | Destroyed Striker 65971 | -2/Testing | Spotted Alpha 7 65996 | -2/Testing | Build established: Wizard-Sprinter 66050 | -2/Testing | Found Exp. Core Analyzer 66085 | -2/Testing | Destroyed Striker 66097 | -2/Testing | Stole the SGEMP Prototype 66156 | -2/Testing | Entered Access 66156 | -1/Access | Evolved 2 slots: Propulsion x1, Utility x1 66157 | -1/Access | Delivered the SGEMP Prototype to Zhirov 66157 | -1/Access | Zhirov transferred Access data 66158 | -1/Access | Loaded intel: 129 machine locations 66158 | -1/Access | Loaded intel: 66 trap records 66158 | -1/Access | Identified exit to Surface 66158 | -1/Access | Discovered exit to Surface (range 101) 66158 | -1/Access | Identified exit to Command 66158 | -1/Access | Discovered exit to Command (range 169) 66270 | -1/Access | Spotted B-99 Colossus 66270 | -1/Access | Destroyed B-99 Colossus 66517 | -1/Access | Fabricated Cld. Q-thruster? 66523 | -1/Access | Zhirov warped through subspace 66656 | -1/Access | First assault squad dispatched 66681 | -1/Access | Scrapoids reinforcements arrived? 66693 | -1/Access | Exp. Hacking Suite fried by hacking feedback 66788 | -1/Access | Fabricated Exp. Hacking Suite (x1) 67297 | -1/Access | Repaired Exp. Utility Shielding 67309 | -1/Access | Repaired Mic. Antimatter Reactor 67333 | -1/Access | Repaired Plasma Lance 67626 | -1/Access | Found Prototype Device 67701 | -1/Access | Found Adv. Force Booster 67786 | -1/Access | Fabricated Adv. Quantum Shading Machine? 67959 | -1/Access | Identified SHELL Armor 68367 | -1/Access | Entered Command 68367 | -1/Command | Accompanied by 1 ally 68461 | -1/Command | Destroyed 8 combat bots 68610 | -1/Command | Phase Generator disabled 68706 | -1/Command | Discovered exit to Surface (range 19) 69039 | -1/Command | Spotted M Guard 69039 | -1/Command | Spotted M Guard 69039 | -1/Command | Spotted Combat Programmer 69047 | -1/Command | Spotted Combat Programmer 69096 | -1/Command | Disengaged cave seal 69145 | -1/Command | Disengaged cave seal 69145 | -1/Command | Wild derelicts emerged from the dark tunnel 69352 | -1/Command | Spotted B-99 Colossus 69353 | -1/Command | Destroyed B-99 Colossus 69752 | -1/Command | Destroyed Combat Programmer 69760 | -1/Command | Destroyed Combat Programmer 69771 | -1/Command | Enhanced Grunt warped into view, answering call for help 69772 | -1/Command | Enhanced Grunt warped into view, answering call for help 69796 | -1/Command | Met MAIN.C 69799 | -1/Command | 0b10 Conduit disabled 69813 | -1/Command | Build established: Machinist-Sprinter 69813 | -1/Command | Destroyed MAIN.C Shell 69814 | -1/Command | MAIN.C activated Command garrisons 69824 | -1/Command | Zhirov used SGEMP to disable MAIN.C 69846 | -1/Command | Discovered exit to Surface (range 37) 69846 | -1/Command | Discovered exit to Surface (range 100) 69846 | -1/Command | Extracted map data and part IDs from MAIN.C's data core 69878 | -1/Command | Found Exp. System Purifier 70156 | -1/Command | Build established: Machinist-Scout 71338 | -1/Command | All MAIN.C guards destroyed 71587 | -1/Command | Build established: Scavenger-Sprinter 71862 | -1/Command | Found Quantum Capacitor 72310 | -1/Command | Found Exp. Powered Armor 72312 | -1/Command | Found Thermal Barrier 72386 | -1/Command | Found Hyp. Multirail 72389 | -1/Command | Found Adv. Kinecellerator 72507 | -1/Command | Found AEGIS Remote Shield 72514 | -1/Command | Found Zero-point Reactor 72617 | -1/Command | Found Exp. Shock Absorption System 72650 | -1/Command | Found Exp. Force Field 72652 | -1/Command | Found Zero-point Reactor 72653 | -1/Command | Found Zero-point Reactor 72814 | -1/Command | Found Exp. Targeting Computer 72817 | -1/Command | Found Exp. Target Analyzer 72820 | -1/Command | Found Exp. Targeting Computer 73188 | -1/Command | Found Multirail 75980 | -1/Command | Found Exp. Core Analyzer 76166 | -1/Command | Warped through subspace to slip node 76166 | -1/Command | Discovered new exit (range 4) 76175 | -1/Command | Entered Access_0 76176 | -1/Access_0 | Met Architect 76184 | -1/Access_0 | Subspace Access Node disabled 76202 | -1/Access_0 | A6 warped into view 76238 | -1/Access_0 | A5 warped into view 76260 | -1/Access_0 | Subspace Access Node disabled 76314 | -1/Access_0 | A4 warped into view 76332 | -1/Access_0 | Found Integrated Mediator 76332 | -1/Access_0 | Installed Integrated Mediator, increased core attachment efficiency 76376 | -1/Access_0 | Subspace Access Node disabled 76405 | -1/Access_0 | Subspace Access Node disabled 76476 | -1/Access_0 | Singularity Gate disabled 76479 | -1/Access_0 | A3 warped into view 76484 | -1/Access_0 | Singularity Gate disabled 76553 | -1/Access_0 | Fired Sigix Terminator 76553 | -1/Access_0 | Destroyed A3 76587 | -1/Access_0 | Lost 3 parts (1p2u) 76611 | -1/Access_0 | Destroyed A6 76631 | -1/Access_0 | Destroyed A2 76678 | -1/Access_0 | Destroyed A8 76707 | -1/Access_0 | Destroyed A5 76728 | -1/Access_0 | Destroyed A4 76803 | -1/Access_0 | Destroyed Architect 76806 | -1/Access_0 | Extracted unknown sensor trigger ID from Architect's data core 77114 | -1/Access_0 | Found Exp. Thermal Shield 77250 | -1/Access_0 | Build established: Machinist-Sprinter 77272 | -1/Access_0 | Found Exp. Core Analyzer 77275 | -1/Access_0 | Found Spectral Analyzer 77647 | -1/Access_0 | Found Prototype Device 77652 | -1/Access_0 | Identified Desublimator 77686 | -1/Access_0 | Build established: Scavenger-Sprinter 77899 | -1/Access_0 | Found Exp. Thermal Shield 78021 | -1/Access_0 | Found Exp. Thermal Shield 78197 | -1/Access_0 | Found Exp. Thermal Shield 78296 | -1/Access_0 | Extracted Singularity Gate Test 138-C access codes from A2's data core 78374 | -1/Access_0 | Found Exp. Powered Armor 78619 | -1/Access_0 | Found Sigix Corpse 78679 | -1/Access_0 | Used Subatomic Replicator to replicate Sigix Corpse 78896 | -1/Access_0 | Found Hpw. Transdimensional Reconstructor 78943 | -1/Access_0 | Found Point Singularity Launcher 78997 | -1/Access_0 | Found Exp. Signal Interpreter 79015 | -1/Access_0 | Found Exp. Thermal Shield 79039 | -1/Access_0 | Found Exp. Transmission Jammer 79041 | -1/Access_0 | Found Gui. Micro-nuke Launcher 79085 | -1/Access_0 | Warped through subspace to slip node 79085 | -1/Access_0 | Discovered exit to Surface (range 8) 79086 | -1/Access_0 | Core integrity fell below 50% 79087 | -1/Access_0 | Found Hpw. Transdimensional Reconstructor 79090 | *** | Escaped! Last Messages --------------- 78928_ Acquired Exp. Cooling System. 78943_ Acquired Point Singularity Launcher. 78959_ Acquired 44 matter. 78960_ Acquired 33 matter. 78982_ Acquired Impulse Thruster Array. 78983_ Dropped Impulse Thruster Array. 78985_ Acquired Impulse Thruster Array. 78997_ Acquired Exp. Signal Interpreter. 79010_ System corrupted: Heat flow error (+217). 79014_ Dropped Electron Diverter. 79015_ Acquired Exp. Thermal Shield. 79039_ Acquired Exp. Transmission Jammer. 79040_ Dropped Prc. Matter Filter. 79040_ Dropped Diametric Drive. 79041_ Acquired Gui. Micro-nuke Launcher. 79050_ Dropped Exp. Thermal Shield. 79051_ Acquired Exp. Terrain Scanner. 79085_ Warped through subspace, drawn to slip node. 79085_ EXIT=FOUND: SURFACE 79087_ Acquired Hpw. Transdimensional Reconstructor. Map ----- +----------------------------------------------------+ | | | | | | | | | | | | | | | | | | | | | | | | | | | | | | | | | ?????????????????????????????????????????????????? | | ?????????????????????????????????????????????????? | | ?????????????????????????????????????????????????? | | ?????????????????????????????????????????????????? | | ?????????????????????????????????????????????????? | | ?????????????????????????????????????????????????? | | ????????????????????????###??????????????????????? | | ???????????????????????## ##?????????????????????? | | ???????????????????????# #?????????????????????? | | ???????????????????????# @ #?????????????????????? | | ??????????????????????## #?????????????????????? | | ??????????????????????# #?????????????????????? | | ??????????????????????# ##?????????????????????? | | ??????????????????????## #?????????????????????? | | ??????????????????????# #?????????????????????? | | ??????????????????????# ##?????????????????????? | | ??????????????????????# < #?????????????????????? | | ??????????????????????# ##?????????????????????? | | ??????????????????????## #??????????????????????? | | ???????????????????????####??????????????????????? | | ?????????????????????????????????????????????????? | | ?????????????????????????????????????????????????? | | ?????????????????????????????????????????????????? | | ?????????????????????????????????????????????????? | | ?????????????????????????????????????????????????? | | ?????????????????????????????????????????????????? | | ?????????????????????????????????????????????????? | | ?????????????????????????????????????????????????? | | ?????????????????????????????????????????????????? | | ?????????????????????????????????????????????????? | | ?#???????????????????????????????????????????????? | | ##??##???????????????????????????????????????????? | | ###??##??????????????????????????????????????????? | | ###?##??#????????????????????????????????????????? | +----------------------------------------------------+ Best States ------------- Heat Dissipation 90 Coolant Potential 120 Energy Generation 75 Energy Capacity 1400 Matter Stores 506 Matter Capacity 550 Sight Range 24 Robot Scan Range 20 Terrain Scan Range 30 Terrain Scan Density 1210 Jamming Range 16 Cloak Strength 5 Power Amplification 30 Additional Mass Support 25 EM Shielding 4 Corruption Containment 12 Corruption Block 20 Armor Coverage 1300 Resistance: KI 20 Resistance: TH 20 Resistance: I 20 Propulsion Shielding 66 Utility Shielding 90 Weapon Shielding 66 Melee Speed Boost 50 Phase Shifting 15 Evasion (%) 94 Targeting Accuracy 30 Target Analysis 12 Core Analysis 8 Armor Integrity Analysis 40 Recoil Reduction 2 Matter Filtering 50 Force Boost 40 Salvage Targeting 18 Offensive Hacking 60 Defensive Hacking 28 Trap Extractor Capacity 8 Item Schematics ----------------- Lrn. Terrain Scanner | -6/Factory | Hacked Smartbomb Launcher | -6/Factory | Scanalyzed Launcher Loader | -6/Factory | Scanalyzed EM Shield | -6/Zion | Archive Field Propulsion Drive | -6/Zion | Archive Thermal Shield | -6/Zion | Archive Mni. Drone Bay | -6/Zion | Archive Lgt. Angular Momentum Engine | -6/Zion | Archive Neutrino Core | -6/Zion | Archive Phase Cannon | -6/Zion | Archive Antimatter Reactor | -6/Zion | Archive Hardcell Cannon | -6/Zion | Archive Nuclear Pulse Thruster | -6/Zion | Archive Lrn. Proton Cannon | -6/Zion | Archive Imp. Thermal Shield | -6/Zion | Archive Wave Gun | -6/Zion | Archive Magnetic Acceleration Cannon | -6/Zion | Archive Exp. Utility Shielding | -5/Factory | Hacked Cld. Nuclear Pulse Thruster | -5/Factory | Hacked Exp. Propulsion Shielding | -5/Factory | Hacked Imp. Corruption Screen | -5/Factory | Scanalyzed Matter Compressor | -5/Factory | Scanalyzed Adv. System Shield | -5/Factory | Scanalyzed Imp. Arc Thrower | -5/Zhirov | Free Exp. Optical Array | -5/Zhirov | Free Assault Drone Bay | -5/Zhirov | Free Exp. Heat Sink | -5/Zhirov | Free Adv. Gravity Neutralizer | -4/Factory | Scanalyzed Exp. Signal Interpreter | -4/Factory | Hacked Exp. Hacking Suite | -4/Factory | Hacked Adv. Component Analysis Suite | -4/Factory | Hacked Impulse Thruster Array | -4/Factory | Hacked Enh. Force Lance | -4/Factory | Hacked Hvy. Linear Accelerator | -4/Factory | Hacked Q-thruster | -4/Factory | Hacked Enh. Nova Cannon | -4/Factory | Hacked System Restoration Module | -4/Factory | Hacked Exp. Weapon Shielding | -4/Factory | Hacked Lrn. Sensor Array | -4/Factory | Hacked Hvy. Neutron Cannon | -4/Factory | Scanalyzed Electron Diverter | -3/Research | Hacked Exp. Terrain Scanner | -3/Research | Hacked Exp. Sensor Array | -3/Research | Hacked Quantum Reactor | -3/Research | Hacked Kinetic Spear | -3/Research | Scanalyzed Imp. Propulsion Shielding | -3/Research | Scanalyzed Exp. Power Amplifier | -3/Research | Scanalyzed Exp. Q-thruster | -3/Quarantine | Hacked Exp. Terrain Scan Processor | -3/Quarantine | Hacked Nanosword | -3/Quarantine | Scanalyzed Gui. Micro-nuke Launcher | -2/Research | Hacked Exp. Core Analyzer | -2/Research | Hacked Molecular Scythe | -2/Research | Scanalyzed Femtoactuators | -2/Research | Hacked Cld. Q-thruster | -2/Research | Hacked Cld. Linear Gravjet | -2/Research | Hacked Imp. Q-thruster | -2/Research | Hacked Exp. Phase Shifter | -2/Testing | Hacked Exp. Reaction Control System | -2/Testing | Hacked Diametric Drive | -2/Testing | Scanalyzed Quantum Capacitor | -2/Testing | Scanalyzed Adv. Quantum Shading Machine | -1/Access | Hacked Exp. Cooling System | -1/Access | Hacked Exp. Coolant Injector | -1/Access | Hacked Robot Schematics ------------------ R-06 Scavenger | -6/Zion | Archive K-01 Serf | -6/Zion | Archive R-10 Processor | -6/Zion | Archive Y-72 Warden | -3/Quarantine | Hacked Fabricated ------------ Shield Leg | x1 | -6/Factory | Preloaded Adv. Force Field | x2 | -6/Factory | Preloaded H-66 Slayer | x2 | -6/Factory | Preloaded Exp. Utility Shielding | x1 | -5/Factory Cld. Nuclear Pulse Thruster | x1 | -5/Factory Launcher Loader | x2 | -5/Factory Exp. Hacking Suite | x1 | -4/Factory Exp. Signal Interpreter | x1 | -4/Factory Exp. Utility Shielding | x1 | -4/Factory Exp. Hacking Suite | x1 | -4/Factory System Restoration Module | x2 | -4/Factory M-30 Cleanser | x1 | -4/Factory | Preloaded Exp. Hacking Suite | x1 | -4/Factory Exp. Hacking Suite | x1 | -4/Factory Matter Compressor | x2 | -4/Factory Exp. Terrain Scanner | x1 | -3/Research Exp. Sensor Array | x1 | -3/Research Femtoactuators | x1 | -2/Research Electron Diverter | x1 | -2/Research Molecular Scythe | x1 | -2/Research Nanosword | x1 | -2/Testing Cld. Q-thruster | x1 | -1/Access Exp. Hacking Suite | x1 | -1/Access Adv. Quantum Shading Machine | x1 | -1/Access Repaired ---------- Lgt. Armor Plating | 57% | -10/Materials Smartbomb Launcher | 57% | -6/Factory Imp. Corruption Screen | 99% | -5/Factory | Broken Smartbomb Launcher | 64% | -5/Factory Adv. Gravity Neutralizer | 99% | -4/Factory | Broken Adv. Transmission Jammer | 13% | -4/Factory Exp. Utility Shielding | 45% | -4/Factory Smartbomb Launcher | 48% | -4/Factory | Broken Cld. Nuclear Pulse Thruster | 42% | -4/Factory Exp. Utility Shielding | 64% | -4/Factory Smartbomb Launcher | 46% | -4/Factory Smartbomb Launcher | 26% | -3/Research Exp. Utility Shielding | 62% | -3/Research Cld. Nuclear Pulse Thruster | 61% | -3/Quarantine Imp. Diametric Drive | 42% | -3/Quarantine Smartbomb Launcher | 77% | -3/Quarantine Smartbomb Launcher | 71% | -3/Protoforge Imp. Diametric Drive | 66% | -2/Research Smartbomb Launcher | 78% | -2/Research Imp. Propulsion Shielding | 62% | -2/Research Exp. Utility Shielding | 84% | -2/Testing Exp. Utility Shielding | 71% | -1/Access Mic. Antimatter Reactor | 27% | -1/Access Plasma Lance | 58% | -1/Access Alien Tech Used ----------------- Integrated Reactor Phase Redirector Phase Armor Subatomic Replicator Dimensional Node Initializer Transdimensional Reconstructor Concept Nanofilaments [Tensile] Sigix Terminator High-powered Transdimensional Reconstructor Integrated Mediator Matter Drive Achievements -------------- Most Wanted Challenges ------------ None Game ------ Seed SalvagingMultireflexWeb Manual? 0 Play Time 32:02:44 Cumulative 840.0 hours Start 2025.05.27 @ 18:02:55 End 2025.06.20 @ 12:05:11 Sessions 79 Manual Loads 0 Difficulty Rogue Special Mode None Game No. 145 Rogue 121 Adventurer 24 Explorer 0 Win Type 0 Total 31 Types 19/2/3/3/1/0/1/1/0/1 Lore% 82 Gallery% 89 Achievement% 88 Wizard Run 0 Options --------- Layout 0 ASCII 0 Keyboard 0 Movement Mouse Keybinds 0 Fullscreen 1 Font 36/Smallcaps Map View 76x50 Zoom Use 0% Tactical HUD 1 Map Filters SHIFT_HUE(360) Filters NONE Steam 1 RUN: 96fb049b-6abf-4b87-a666-09e5a36375d9